Workbook

Sheet Disclaimer
A1: Disclaimer for Software
A2: Important: This Excel Model ("Software") is the property of the Society of Actuaries (SOA) and is protected under U.S. and international copyright laws.
A3: The Software has been developed for the benefit of actuaries FOR EDUCATIONAL USE ONLY, although others may find it useful. SOA and the author make the Software available to individual users for their personal use on a non–exclusive basis. No commercial use, reproduction or distribution is permitted whatsoever.
A4: SOA and the author make no warranty, guarantee, or representation, either expressed or implied, regarding the Software, including its quality, accuracy, reliability, or suitability, and HEREBY DISCLAIM ANY WARRANTY REGARDING THE SOFTWARE'S MERCHANTABILITY OR FITNESS FOR ANY PARTICULAR PURPOSE. SOA and the author make no warranty that the Software is free from errors, defects, worms, viruses or other elements or codes that manifest contaminating or destructive properties. In no event shall SOA or the author be liable for any damages (including any lost profits, lost savings, or direct, indirect, incidental, consequential or other damages) in connection with or resulting from the use, misuse, reliance on, or performance of any aspect of the Software including any instructions or documentation accompanying the Software. SOA and the author make no representation or warranty of non–infringement of proprietary rights of others with respect to the Software. The entire risk as to the uses, outputs, analyses, results and performance of the Software is assumed by the user. This Disclaimer applies regardless of whether the Software is used alone or with other software.
A5: The model, accompanying documentation, and methodologies contained herein do not represent an official position, statement, or endorsement on behalf of the Society of Actuaries or its members, nor should the material be construed to do so. It is the product of a research effort commissioned by the Society of Actuaries to add to the library of resource tools. The model is neither intended to preclude the use of other methodologies for any purpose nor provide a statement or position on the use, application, or preferability of other methodologies as compared to the methodology described herein.

Sheet Instructions
A1: MACRA/QPP - Provider Revenue Model - Instructions
A3: Published Date: 11/1/18
A5: Overview & Caveats
A7: The MACRA/QPP model is designed to provide an estimate of the revenue impact of the QPP (MIPS, AAPM) on a provider group or ACO, based on the required inputs and scenarios. The User should note the specific assumptions as outlined in the References & Assumptions tab.
A8: The model is based on MACRA regulations as published by CMS through November 1, 2018 (Final Rule Year 3). Any subsequent publications by CMS after the "published date" as noted in this model must be considered for relevant impact to the QPP.
A9: Please note the model is designed for estimation only, and is not a guarantee of actual financial results.
A11: Model Input
A13: VARIABLE | B13: ENTRY
A14: Provider Group or ACO Name | B14: Enter the provider group or ACO name for the analysis.
A15: ACO Type [Advanced APM or APM] | B15: Choose APM or AAPM for current status of group (e.g. Upside risk only = APM, upside/downside = AAPM).
A16: Total Physician Revenue [CY2017] | B16: Enter total physician revenue for Traditional Medicare and Other Payers in 000's for 2017.
A17: Revenue and Members by LOB | B17: Enter membership and % of revenue for each product line.
A18: Annual Growth Rate % | B18: Enter annual growth rate by product line.
A19: Risk Sharing as % of Revenue | B19: Enter risk sharing % for each alternative payment model. Default is 0%.
A20: MIPS Scenario | B20: For each year, enter anticipated score for each measure. The resulting MIPS CPS and payment adjustment factor will be displayed in the rightmost columns.
A21: Quality | B21: Assumes 6 measures, max score of 60. Min score for each measure is 3 (i.e. default is 18).
A22: Practice Improvement | B22: Max score of 40. Default is 20.
A23: Promoting Interoperability | B23: Min score of 50, max score of 100. Default is 50.
A24: Resource Use | B24: Max score of 10. Default is 30.
A25: AAPM Scenario (Shift) | B25: This is the scenario to model a shift from MIPS to AAPM. Enter the % of patients for the desired year to move into the AAPM in column G. QP status will be displayed in the table in rows 28 to 36, based on patient count and/or revenue %. Based on the table, the QP status in J19 to J25 will be populated.
A28: Model Output
A30: TAB | B30: CONTENT
A31: Revenue at Risk Summary | B31: This tab summarizes the results of the MACRA Baseline and MACRA Patient Shift assumptions. Three tables are presented for each of the two scenarios: Revenue, change in margin, and revenues at risk.
A34: Charts_Rev & Margin | B34: Projected Revenue Graphs, FFS and Total, for both scenarios.
B35: Margin Erosion Graphs, FFS and Total, for both scenarios.
A36: Charts_Performance | B36: Displays Revenue at Risk (i.e. MACRA payments), for both scenarios, using User Input values.

Sheet References & Assumptions
A1: MACRA/QPP - Provider Revenue Model - References and Assumptions
A3: VARIABLE | B3: DESCRIPTION
A4: MACRA | B4: Medicare and CHIP Reauthorization Act of 2015
A5: QPP | B5: Quality Payment Program - Implements the MIPS and AAPM pathways
A6: MIPS | B6: Merit-Based Incentive Payment System
A7: AAPM | B7: Advanced Alternative Payment Model
A8: QP | B8: Qualified Participant - Must reach defined threshold of Part B patient count or revenue to receive the 5% AAPM bonus payment.
A9: Final Rule | B9: https://www.federalregister.gov/documents/2016/11/04/2016-25240/medicare-program-merit-based-incentive-payment-system-mips-and-alternative-payment-model-apm
A10: Final Rule Year 2 | B10: https://www.federalregister.gov/documents/2017/11/16/2017-24067/medicare-program-cy-2018-updates-to-the-quality-payment-program-and-quality-payment-program-extreme
A11: Final Rule Year 3 | B11: https://www.federalregister.gov/documents/2018/11/23/2018-24170/medicare-program-revisions-to-payment-policies-under-the-physician-fee-schedule-and-other-revisions
A12: MACRA Physician Schedule Growth Rate | B12: The Medicare Part B fee schedule will increase 0.5% each year for 2016 to 2019, after which it will be frozen until 2026, when the increases will be based on MIPS or AAPM status.
A13: AAPM Bonus Payment | B13: The bonus payment is 5% for 2019-2024, for Qualified Participants.
A14: MIPS Payment – Min | B14: This is the maximum negative payment adjustment.
B15: Adjustment is -4% for payment year 2019, -5% for 2020, -7% for 2021, and -9% for 2022.
A16: MIPS Payment – Max | B16: This is the maximum positive payment adjustment.
B17: Adjustment is 0.2% for payment year 2019, 0.6% for 2020, 1.5% for 2021, and 9% for 2022. This can be scaled up to 3X for budget neutrality.
B18: 2019 was originally 4%, 2020 5%, and 2021 7%, however these values were reduced due to "transition year" status and a CPS set lower than the median score. This is based
B19: on the release of the 2017 aggregate results:
A20: ` | B20: https://www.cms.gov/Medicare/Quality-Payment-Program/Resource-Library/2017-QPP-Performance-Data-Infographic.pdf
A21: MIPS Scaling Factor | B21: CMS calculates MIPS adjustment factor of 1x to 3x; dependent upon budget neutrality; Default is 1X.
A22: Exceptional Performer (EP) Adjustment | B22: This adjustment to the MIPS payment factor is for exceptional performers (top 25th percentile) and can be scaled from 0.5% up to a maximum of 10%.
A23: Exceptional Performer (EP) Threshold | B23: The threshold was defined by CMS as a CPS of 70 for 2017 and 2018 per the "transition year" regulations. For 2019, this was defined as CPS of 75 per the Final Year 3 rule.
B24: For 2020+, the threshold is set at the top 25th percentile based on the CPS threshold, and for this model, is assumed to be CPS of 80.
A25: Exceptional Performer (EP) Scaling Factor | B25: CMS calculates - dependent upon performance and availability of $500M funds; Default is 0.25. Based on the release of the 2017 aggregate results,
B26: the scaling factor is set at 0.168 for performance years 2017 through 2019.
A27: CPS Performance Threshold | B27: Per CMS, the threshold is 3 for 2017, 15 for 2018, and 30 for 2019 based on Final or Proposed Rules.
B28: For 2020+, per regulation, the CPS is set at the median score. Within this model, the assumptions are: 60 for 2020+.
A29: QP Status - (Y=1,PQP=2,N=0) | B29: This is determined by % of revenue or patient counts under Medicare risk contracts.
A30: Participate in MIPS (Y=1,N=0) | B30: This is determined by QP status and the MIPS adjustment factor.
A31: Medical CPI | B31: This is the Consumer Price Index as established by the US Dept. of Labor, Bureau of Labor and Statistics. It measures the price change in medical care and is used to project the baseline costs. For June 2018 this value is 2.1%.
A32: MIPS Measure Weights | B32: MIPS APM: 60% Quality, 15% Improvement Activities, 25% Promoting Interoperability (f/k/a Advancing Care)
B33: MIPS (Standard) 2017: 60% Quality, 15% IA, 25% PI
B34: MIPS (Standard) 2018: 50% Quality, 15% IA, 25% PI, 10% Resource Use
B35: MIPS (Standard) 2019+: 45% Quality, 15% IA, 25% PI, 15% Resource Use
A36: Performance Year | B36: The year in which the performance is measured for the eligible clinicians.
A37: Payment Year | B37: The payment year is a 2-year offset from the performance year, i.e. performance year 2017 is payment year 2019.
B38: MIPS adjustments will be applied to the Part B fee schedule in the payment year, based on the results from the performance year.
B39: AAPM 5% bonus will be paid by December of the payment year, based on QP status in the performance year, and calculated off the year prior to the payment year. For example, if QP status in 2017, 5% bonus paid in 2019 is based on 2018 Part B revenue.

Sheet MODEL INPUT
A1: MACRA/QPP - Provider Revenue Model - Inputs
A3: Provider Group or ACO Name | F3: MIPS Scenario
A4: ACO Type [Advanced APM or APM] | B4: FFS | F4: Measure | G4: Quality | H4: Practice Improvement | I4: Promoting Inter-Operability | J4: Resource Use (Cost) | K4: CPS Score | L4: Calculations | N4: Quality | O4: Practice Improvement | P4: Promoting Inoperability | Q4: Resource Use | R4: Quality % | S4: Practice % | T4: Promoting Inoperability % | U4: Resource Use %
F5: Range | G5: 3 to 60 | H5: 0 to 40 | I5: 50 to 100 | J5: 0 to 10 | K5: (0 - 100) | L5: MIPS | M5: EP
F6: Default | G6: 18 | H6: 20 | I6: 50 | J6: 3
A7: Total Physician Revenue [CY2017] | B7: 1000 | C7: Enter Dollars (000's) | E7: Performance Year | F7: 2017 | G7: 18 | H7: 20 | I7: 50 | K7: =MIN(MAX(SUM(N7:Q7),0),100) -> 38 | L7: =CDO_MIPS_2019 -> 0.0007216494845 | M7: =CDO_MIPS_Bonus_2019 -> 0 | N7: =G7/60*R7*100 -> 18 | O7: =H7/40*S7*100 -> 7.5 | P7: =I7/100*T7*100 -> 12.5 | Q7: =J7/10*U7*100 -> 0 | R7: 0.6 | S7: 0.15 | T7: 0.25 | U7: 0 | V7: =F7+2 -> 2019 | W7: Payment Year
C8: =IF(AND(B4="Advanced APM",OR(C11<>"",B11<>"")),"AAPM type selected, ensure no APM Members/Revenue",IF(AND(B4="APM",OR(C10<>"",B10<>"")),"APM type selected, ensure no AAPM Members/Revenue",IF(AND(B4="FFS",OR(C11<>"",B11<>"",B10<>"",C10<>"")),"FFS type selected, ensure no AAPM or APM Members/Revenue",""))) ->  | F8: =F7+1 -> 2018 | G8: 18 | H8: 20 | I8: 50 | J8: 3 | K8: 38 | L8: =CDO_MIPS_2020 -> 0.001623529412 | M8: =CDO_MIPS_Bonus_2020 -> 0 | N8: =G8/60*R8*100 -> 15 | O8: =H8/40*S8*100 -> 7.5 | P8: =I8/100*T8*100 -> 12.5 | Q8: =J8/10*U8*100 -> 3 | R8: =IF($B$4="FFS",0.5,$R$7) -> 0.5 | S8: 0.15 | T8: 0.25 | U8: =IF($B$4="FFS",0.1,$U$7) -> 0.1 | V8: =F8+2 -> 2020
A9: Revenue and Members by LOB | B9: # Members | C9: % Revenue* | D9: Revenue per Member | F9: =F8+1 -> 2019 | G9: 36 | H9: 40 | I9: 50 | J9: 3 | K9: 59 | L9: =CDO_MIPS_2021 -> 0.006214285714 | M9: =CDO_MIPS_Bonus_2021 -> 0 | N9: 27 | O9: 15 | P9: 12.5 | Q9: 4.5 | R9: 0.45 | S9: 0.15 | T9: 0.25 | U9: 0.15 | V9: 2021
A10: Medicare Advanced APM (AAPM) | D10: =IFERROR($B$7*C10/B10,0)*1000 -> 0 | F10: 2020 | G10: 36 | H10: 40 | I10: 50 | J10: 3 | K10: 54.5 | L10: =CDO_MIPS_2022 -> -0.00825 | M10: =CDO_MIPS_Bonus_2022 -> 0 | N10: 18 | O10: 15 | P10: 12.5 | Q10: 9 | R10: =IF($B$4="FFS",0.3,$R$7) -> 0.3 | S10: 0.15 | T10: 0.25 | U10: =IF($B$4="FFS",0.3,$U$7) -> 0.3 | V10: 2022
A11: Medicare APM | D11: =IFERROR($B$7*C11/B11,0)*1000 -> 0 | F11: 2021 | G11: 36 | H11: 40 | I11: 50 | J11: 3 | K11: 54.5 | L11: =CDO_MIPS_2023 -> -0.00825 | M11: =CDO_MIPS_Bonus_2023 -> 0 | N11: 18 | O11: 15 | P11: 12.5 | Q11: 9 | R11: 0.3 | S11: 0.15 | T11: 0.25 | U11: 0.3 | V11: 2023
A12: Medicare FFS | B12: 1000 | C12: 1 | D12: =IFERROR($B$7*C12/B12,0)*1000 -> 1000 | F12: 2022 | G12: 36 | H12: 40 | I12: 50 | J12: 3 | K12: 54.5 | L12: =CDO_MIPS_2024 -> -0.00825 | M12: =CDO_MIPS_Bonus_2024 -> 0 | N12: 18 | O12: 15 | P12: 12.5 | Q12: 9 | R12: 0.3 | S12: 0.15 | T12: 0.25 | U12: 0.3 | V12: 2024
A13: Other Payer AAPM | D13: =IFERROR($B$7*C13/B13,0)*1000 -> 0 | F13: 2023 | G13: 36 | H13: 40 | I13: 50 | J13: 3 | K13: 54.5 | L13: =CDO_MIPS_2025 -> -0.00825 | M13: =CDO_MIPS_Bonus_2025 -> 0 | N13: 18 | O13: 15 | P13: 12.5 | Q13: 9 | R13: 0.3 | S13: 0.15 | T13: 0.25 | U13: 0.3 | V13: 2025
A14: Other Payer non-AAPM | C14: =1-SUM(C10:C13) -> 0 | D14: =IFERROR($B$7*C14/B14,0)*1000 -> 0 | F14: =F13+1 -> 2024 | G14: 36 | H14: 40 | I14: 50 | J14: 3 | K14: 54.5 | L14: =CDO_MIPS_2026 -> -0.00825 | M14: =CDO_MIPS_Bonus_2026 -> 0 | N14: 18 | O14: 15 | P14: 12.5 | Q14: 9 | R14: 0.3 | S14: 0.15 | T14: 0.25 | U14: 0.3 | V14: 2026
C15: *Total must add up to 100%
A16: Annual Growth Rate % | F16: AAPM Scenario (Shift)
A17: Medicare Advanced APM (AAPM) | F17: Enter % of Members in AAPM (0% to 100%), default is 50%
A18: Medicare APM | G18: AAPM | H18: APM | I18: FFS | J18: QP?
A19: Medicare FFS | E19: Performance Year | F19: =F8 -> 2018 | G19: 0 | H19: =B11/SUM(B11:B12) -> 0 | I19: =B12/SUM(B11:B12) -> 1 | J19: N/A | K19: =F19+2 -> 2020 | L19: Payment Year
A20: Other Payer AAPM | F20: 2019 | G20: 0.5 | H20: =IF(G20=0,H19,0) -> 0 | I20: =1-SUM(G20:H20) -> 0.5 | J20: =IF(Assumptions!G27=1,"N","Y") -> Y | K20: =F20+2 -> 2021
A21: Other Payer non-AAPM | F21: 2020 | G21: 0.5 | H21: =IF(G21=0,H20,0) -> 0 | I21: =1-SUM(G21:H21) -> 0.5 | J21: =IF(Assumptions!H27=1,"N","Y") -> Y | K21: 2022
F22: 2021 | G22: 0.5 | H22: 0 | I22: 0.5 | J22: =IF(Assumptions!I27=1,"N","Y") -> Y | K22: 2023
A23: Risk Sharing as % of Revenue | F23: 2022 | G23: 0.5 | H23: 0 | I23: 0.5 | J23: =IF(Assumptions!J27=1,"N","Y") -> Y | K23: 2024
A24: Medicare Advanced APM (AAPM) | F24: 2023 | G24: 0.5 | H24: 0 | I24: 0.5 | J24: =IF(Assumptions!K27=1,"N","Y") -> Y | K24: 2025
A25: Medicare APM | F25: 2024 | G25: 0.5 | H25: 0 | I25: 0.5 | J25: =IF(Assumptions!L27=1,"N","Y") -> Y | K25: 2026
A26: Other Payer AAPM
D27: QP Threshold Score and Thresholds (Shift Scenario)
D28: Calculated using Revenue Amount | H28: Calculated using Patient Count
D29: ACO Calculated Medicare % | E29: ACO Calculated All Payer % | F29: Medicare QP Threshold | G29: All Payer QP Threshold ( > 25% Medicare) | H29: ACO Calculated Medicare % | I29: ACO Calculated All Payer % | J29: Medicare QP Threshold | K29: All Payer QP Threshold ( > 20% Medicare)
B30: Performance Year | C30: 2018 | D30: N/A | E30: N/A | F30: =INDIRECT("QP_MCR_REV_Threshold_"&C32) -> 0.25 | G30: N/A | J30: =INDIRECT("QP_MCR_PT_Threshold_"&C32) -> 0.2 | K30: N/A
C31: =+C30+1 -> 2019 | D31: =INDIRECT("CDO_MCR_REV_Shift_"&C31) -> 0 | E31: =INDIRECT("CDO_AP_REV_Shift_"&C31) -> 0 | F31: =INDIRECT("QP_MCR_REV_Threshold_"&C33) -> 0.5 | G31: =INDIRECT("QP_AP_REV_Threshold_"&C33) -> 0.5 | H31: =INDIRECT("CDO_MCR_PT_Shift_"&C31) -> 0 | I31: =INDIRECT("CDO_AP_PT_Shift_"&C31) -> 0 | J31: =INDIRECT("QP_MCR_PT_Threshold_"&C33) -> 0.35 | K31: =INDIRECT("QP_AP_PT_Threshold_"&C33) -> 0.35
C32: =+C31+1 -> 2020 | D32: 0 | E32: 0 | F32: =INDIRECT("QP_MCR_REV_Threshold_"&C34) -> 0.5 | G32: =INDIRECT("QP_AP_REV_Threshold_"&C34) -> 0.5 | H32: =INDIRECT("CDO_MCR_PT_Shift_"&C32) -> 0 | I32: 0 | J32: =INDIRECT("QP_MCR_PT_Threshold_"&C34) -> 0.35 | K32: =INDIRECT("QP_AP_PT_Threshold_"&C34) -> 0.35
C33: 2021 | D33: 0.5 | E33: =INDIRECT("CDO_AP_REV_Shift_"&C33) -> 0.5 | F33: =INDIRECT("QP_MCR_REV_Threshold_"&C35) -> 0.75 | G33: =INDIRECT("QP_AP_REV_Threshold_"&C35) -> 0.75 | H33: 0.5 | I33: 0.5 | J33: =INDIRECT("QP_MCR_PT_Threshold_"&C35) -> 0.5 | K33: =INDIRECT("QP_AP_PT_Threshold_"&C35) -> 0.5
C34: 2022 | D34: 0.5 | E34: =INDIRECT("CDO_AP_REV_Shift_"&C34) -> 0.5 | F34: =INDIRECT("QP_MCR_REV_Threshold_"&C36) -> 0.75 | G34: =INDIRECT("QP_AP_REV_Threshold_"&C36) -> 0.75 | H34: 0.5 | I34: 0.5 | J34: =INDIRECT("QP_MCR_PT_Threshold_"&C36) -> 0.5 | K34: =INDIRECT("QP_AP_PT_Threshold_"&C36) -> 0.5
C35: 2023 | D35: 0.5 | E35: 0.5 | F35: =INDIRECT("QP_MCR_REV_Threshold_"&C39) -> 0.75 | G35: =INDIRECT("QP_AP_REV_Threshold_"&C39) -> 0.75 | H35: 0.5 | I35: 0.5 | J35: =INDIRECT("QP_MCR_PT_Threshold_"&C39) -> 0.5 | K35: =INDIRECT("QP_AP_PT_Threshold_"&C39) -> 0.5
C36: 2024 | D36: =INDIRECT("CDO_MCR_REV_Shift_"&C36) -> 0.5 | E36: 0.5 | F36: =INDIRECT("QP_MCR_REV_Threshold_"&C40) -> 0.75 | G36: =INDIRECT("QP_AP_REV_Threshold_"&C40) -> 0.75 | H36: 0.5 | I36: 0.5 | J36: =INDIRECT("QP_MCR_PT_Threshold_"&C40) -> 0.5 | K36: =INDIRECT("QP_AP_PT_Threshold_"&C40) -> 0.5
C39: 2025
C40: 2026

Sheet Input by Entity (hidden)
A1: OptumInsight MACRA Revenue Model | O1: FFS
O2: APM
A3: Provider Group or ACO Name | D3: ='MODEL INPUT'!B3 -> 0 | O3: Advanced APM
A4: ACO Type [Advanced APM or APM] | D4: ='MODEL INPUT'!B4 -> FFS | O4: =ACO_Selection -> FFS
A6: Total Revenue [CY2017] | D6: ='MODEL INPUT'!B7 -> 1000 | E6: ( 000's)
A7: Revenue Distr. by LOB
B8: Medicare Advanced APM | D8: ='MODEL INPUT'!C10 -> 0 | E8: =D8*$D$6 -> 0
B9: Medicare APM | D9: ='MODEL INPUT'!C11 -> 0 | E9: =D9*$D$6 -> 0
B10: Medicare FFS | D10: ='MODEL INPUT'!C12 -> 1 | E10: =D10*$D$6 -> 1000
B11: Other Payer AAPM | D11: ='MODEL INPUT'!C13 -> 0 | E11: =D11*$D$6 -> 0
B12: Other Payer non-AAPM | D12: ='MODEL INPUT'!C14 -> 0 | E12: =D12*$D$6 -> 0
A14: PERFORMANCE YEAR | D14: 2017 | E14: 2018 | F14: 2019 | G14: 2020 | H14: 2021 | I14: 2022 | J14: 2023 | K14: 2024 | L14: 2025 | M14: 2026
A15: Attributed Patient #
B16: Traditional Medicare | D16: =SUM(D17:D19) -> 1000 | E16: 1000 | F16: 1000 | G16: 1000 | H16: 1000 | I16: 1000 | J16: 1000 | K16: 1000 | L16: 1000 | M16: 1000
C17: Medicare Advanced APM | D17: ='MODEL INPUT'!B10 -> 0 | E17: =D17*(1+E33) -> 0 | F17: 0 | G17: 0 | H17: 0 | I17: 0 | J17: 0 | K17: 0 | L17: 0 | M17: 0
C18: Medicare APM | D18: ='MODEL INPUT'!B11 -> 0 | E18: =D18*(1+E34) -> 0 | F18: 0 | G18: 0 | H18: 0 | I18: 0 | J18: 0 | K18: 0 | L18: 0 | M18: 0
C19: Medicare FFS | D19: ='MODEL INPUT'!B12 -> 1000 | E19: =D19*(1+E35) -> 1000 | F19: 1000 | G19: 1000 | H19: 1000 | I19: 1000 | J19: 1000 | K19: 1000 | L19: 1000 | M19: 1000
B20: Other Payer AAPM | D20: ='MODEL INPUT'!B13 -> 0 | E20: =D20*(1+E36) -> 0 | F20: 0 | G20: 0 | H20: 0 | I20: 0 | J20: 0 | K20: 0 | L20: 0 | M20: 0
B21: Other Payer non-AAPM | D21: ='MODEL INPUT'!B14 -> 0 | E21: =D21*(1+E37) -> 0 | F21: 0 | G21: 0 | H21: 0 | I21: 0 | J21: 0 | K21: 0 | L21: 0 | M21: 0
D22: =SUM(D17:D21) -> 1000 | E22: 1000 | F22: 1000 | G22: 1000 | H22: 1000 | I22: 1000 | J22: 1000 | K22: 1000 | L22: 1000 | M22: 1000
A24: Attributed Patients - Timing of Shift from APM to AAPM Scenario
E25: =IF(AND(E26=0,E27=0),0,IF(E26<>0,1,IF(E27<>0,2))) -> 0 | F25: 1 | G25: 1 | H25: 1 | I25: 1 | J25: 1 | K25: 1 | L25: 1 | M25: 1
B26: Medicare Advanced APM | E26: ='MODEL INPUT'!G19 -> 0 | F26: ='MODEL INPUT'!G20 -> 0.5 | G26: ='MODEL INPUT'!G21 -> 0.5 | H26: ='MODEL INPUT'!G22 -> 0.5 | I26: ='MODEL INPUT'!G23 -> 0.5 | J26: ='MODEL INPUT'!G24 -> 0.5 | K26: ='MODEL INPUT'!G25 -> 0.5 | L26: 0.5 | M26: 0.5
B27: Medicare APM | E27: ='MODEL INPUT'!H19 -> 0 | F27: ='MODEL INPUT'!H20 -> 0 | G27: ='MODEL INPUT'!H21 -> 0 | H27: ='MODEL INPUT'!H22 -> 0 | I27: ='MODEL INPUT'!H23 -> 0 | J27: ='MODEL INPUT'!H24 -> 0 | K27: ='MODEL INPUT'!H25 -> 0
B28: Medicare FFS | E28: =1-SUM(E26:E27) -> 1 | F28: 0.5 | G28: 0.5 | H28: 0.5 | I28: 0.5 | J28: 0.5 | K28: 0.5 | L28: 0.5 | M28: 0.5
A31: Patient # Growth Rate
B32: Traditional Medicare
C33: Medicare Advanced APM | E33: ='MODEL INPUT'!B17 -> 0 | F33: =AAPM_Pt_rate_2018 -> 0 | G33: 0 | H33: 0 | I33: 0 | J33: 0 | K33: 0 | L33: 0 | M33: 0
C34: Medicare APM | E34: ='MODEL INPUT'!B18 -> 0 | F34: 0 | G34: 0 | H34: 0 | I34: 0 | J34: 0 | K34: 0 | L34: 0 | M34: 0
C35: Medicare FFS | E35: ='MODEL INPUT'!B19 -> 0 | F35: 0 | G35: 0 | H35: 0 | I35: 0 | J35: 0 | K35: 0 | L35: 0 | M35: 0
B36: Other Payer AAPM | E36: ='MODEL INPUT'!B20 -> 0 | F36: 0 | G36: 0 | H36: 0 | I36: 0 | J36: 0 | K36: 0 | L36: 0 | M36: 0
B37: Other Payer non-AAPM | E37: ='MODEL INPUT'!B21 -> 0 | F37: 0 | G37: 0 | H37: 0 | I37: 0 | J37: 0 | K37: 0 | L37: 0 | M37: 0
A39: Risk Sharing as % of Revenue
B40: Medicare Advanced APM | D40: ='MODEL INPUT'!B24 -> 0 | E40: =AAPM_Rsk_Shr_2017 -> 0 | F40: 0 | G40: 0 | H40: 0 | I40: 0 | J40: 0 | K40: 0 | L40: 0 | M40: 0 | O40: <don't grey out, used for both workstreams>
B41: Medicare APM | D41: ='MODEL INPUT'!B25 -> 0 | E41: =APM_Rsk_Shr_2017 -> 0 | F41: 0 | G41: 0 | H41: 0 | I41: 0 | J41: 0 | K41: 0 | L41: 0 | M41: 0
B42: Other Payer AAPM | D42: ='MODEL INPUT'!B26 -> 0 | E42: =Comm_Rsk_Shr_2017 -> 0 | F42: 0 | G42: 0 | H42: 0 | I42: 0 | J42: 0 | K42: 0 | L42: 0 | M42: 0
A47: Composite Performance Score (CPS) | D47: ='MODEL INPUT'!K7 -> 38 | E47: ='MODEL INPUT'!K8 -> 38 | F47: ='MODEL INPUT'!K9 -> 59 | G47: ='MODEL INPUT'!K10 -> 54.5 | H47: ='MODEL INPUT'!K11 -> 54.5 | I47: ='MODEL INPUT'!K12 -> 54.5 | J47: ='MODEL INPUT'!K13 -> 54.5 | K47: ='MODEL INPUT'!K14 -> 54.5 | L47: ='MODEL INPUT'!K15 -> 0 | M47: ='MODEL INPUT'!K18 -> 0 | N47: <this number can't be over 100>
A48: Ratio to Median | D48: =D47/Assumptions!E30 -> 12.66666667 | E48: =E47/Assumptions!F30 -> 2.533333333 | F48: =F47/Assumptions!G30 -> 1.966666667 | G48: =G47/Assumptions!H30 -> 0.9083333333 | H48: =H47/Assumptions!I30 -> 0.9083333333 | I48: =I47/Assumptions!J30 -> 0.9083333333 | J48: =J47/Assumptions!K30 -> 0.9083333333 | K48: =K47/Assumptions!L30 -> 0.9083333333 | L48: =L47/Assumptions!M30 -> 0 | M48: =M47/Assumptions!N30 -> 0
A50: MIPS Adjustment Factor Output | F50: =IF(Lookups!C29<0,Lookups!C29,Lookups!C29*Assumptions!E35) -> 0.0007216494845 | G50: =IF(Lookups!H29<0,Lookups!H29,Lookups!H29*Assumptions!F35) -> 0.001623529412 | H50: =IF(Lookups!L29<0,Lookups!L29,Lookups!L29*Assumptions!G35) -> 0.006214285714 | I50: =IF(Lookups!P29<0,Lookups!P29,Lookups!P29*Assumptions!H35) -> -0.00825 | J50: =IF(Lookups!T29<0,Lookups!T29,Lookups!T29*Assumptions!I35) -> -0.00825 | K50: =IF(Lookups!X29<0,Lookups!X29,Lookups!X29*Assumptions!J35) -> -0.00825 | L50: =IF(Lookups!AB29<0,Lookups!AB29,Lookups!AB29*Assumptions!K35) -> -0.00825 | M50: =IF(Lookups!AF29<0,Lookups!AF29,Lookups!AF29*Assumptions!L35) -> -0.00825
A51: (corridor +/-% includes up to 3x)
A53: Exceptional Performance Adjustment Factor | F53: =Lookups!C38*Assumptions!E41 -> 0 | G53: =Lookups!H38*Assumptions!F41 -> 0 | H53: =Lookups!L38*Assumptions!G41 -> 0 | I53: =Lookups!P38*Assumptions!H41 -> 0 | J53: =Lookups!T38*Assumptions!I41 -> 0 | K53: =Lookups!X38*Assumptions!J41 -> 0 | L53: =Lookups!AB38*Assumptions!K41 -> 0 | M53: =Lookups!AF38*Assumptions!L41 -> 0
A54: (0.5% to 10% linearly interpolated)

Sheet Lookups (hidden)
C2: QP patient count threshold | P2: QP Revenue threshold
F3: 2019 | G3: 2020 | H3: 2021 | I3: 2022 | J3: 2023 | K3: 2024 | L3: 2025 | M3: 2026 | N3: 2026+ | S3: =F3 -> 2019 | T3: =G3 -> 2020 | U3: 2021 | V3: 2022 | W3: 2023 | X3: 2024 | Y3: 2025 | Z3: 2026 | AA3: 2026+
C4: Medicare Option | P4: Medicare Option
E5: Full | F5: 0.2 | G5: 0.2 | H5: 0.35 | I5: 0.35 | J5: 0.5 | K5: 0.5 | L5: 0.5 | M5: 0.5 | N5: 0.5 | R5: Full | S5: 0.25 | T5: 0.25 | U5: 0.5 | V5: 0.5 | W5: 0.75 | X5: 0.75 | Y5: 0.75 | Z5: 0.75 | AA5: 0.75
E6: Partial | F6: 0.1 | G6: 0.1 | H6: 0.25 | I6: 0.25 | J6: 0.35 | K6: 0.35 | L6: 0.35 | M6: 0.35 | N6: 0.35 | R6: Partial | S6: 0.2 | T6: 0.2 | U6: 0.4 | V6: 0.4 | W6: 0.5 | X6: 0.5 | Y6: 0.5 | Z6: 0.5 | AA6: 0.5
C8: All Payer Option | P8: All Payer Option
C9: must also meet 20% and 10% | E9: Full | H9: 0.35 | I9: 0.35 | J9: 0.5 | K9: 0.5 | L9: 0.5 | M9: 0.5 | N9: 0.5 | P9: must also meet 25% and 20% | R9: Full | U9: 0.5 | V9: 0.5 | W9: 0.75 | X9: 0.75 | Y9: 0.75 | Z9: 0.75 | AA9: 0.75
C10: for Medicare for QP and PQP | E10: Partial | H10: 0.25 | I10: 0.25 | J10: 0.35 | K10: 0.35 | L10: 0.35 | M10: 0.35 | N10: 0.35 | P10: for Medicare for QP and PQP | R10: Partial | U10: 0.4 | V10: 0.4 | W10: 0.5 | X10: 0.5 | Y10: 0.5 | Z10: 0.5 | AA10: 0.5
C11: respectively | P11: respectively
D13: Baseline | Q13: Baseline
E14: Medicare | F14: =IFERROR(Data!D34/Data!D5,0) -> 0 | G14: =IFERROR(Data!E34/Data!E5,0) -> 0 | H14: =IFERROR(Data!F34/Data!F5,0) -> 0 | I14: =IFERROR(Data!G34/Data!G5,0) -> 0 | J14: =IFERROR(Data!H34/Data!H5,0) -> 0 | K14: =IFERROR(Data!I34/Data!I5,0) -> 0 | L14: =IFERROR(Data!J34/Data!J5,0) -> 0 | M14: =IFERROR(Data!K34/Data!K5,0) -> 0 | N14: =IFERROR(Data!L34/Data!L5,0) -> 0 | R14: Medicare | S14: =IFERROR(Data!D44/Data!D15,0) -> 0 | T14: =IFERROR(Data!E44/Data!E15,0) -> 0 | U14: =IFERROR(Data!F44/Data!F15,0) -> 0 | V14: =IFERROR(Data!G44/Data!G15,0) -> 0 | W14: =IFERROR(Data!H44/Data!H15,0) -> 0 | X14: =IFERROR(Data!I44/Data!I15,0) -> 0 | Y14: =IFERROR(Data!J44/Data!J15,0) -> 0 | Z14: =IFERROR(Data!K44/Data!K15,0) -> 0 | AA14: =IFERROR(Data!L44/Data!L15,0) -> 0
E15: All Payer | F15: =IFERROR(SUM(Data!D34,Data!D121)/SUM(Data!D5,Data!D121,Data!D150),0) -> 0 | G15: =IFERROR(SUM(Data!E34,Data!E121)/SUM(Data!E5,Data!E121,Data!E150),0) -> 0 | H15: =IFERROR(SUM(Data!F34,Data!F121)/SUM(Data!F5,Data!F121,Data!F150),0) -> 0 | I15: =IFERROR(SUM(Data!G34,Data!G121)/SUM(Data!G5,Data!G121,Data!G150),0) -> 0 | J15: =IFERROR(SUM(Data!H34,Data!H121)/SUM(Data!H5,Data!H121,Data!H150),0) -> 0 | K15: =IFERROR(SUM(Data!I34,Data!I121)/SUM(Data!I5,Data!I121,Data!I150),0) -> 0 | L15: =IFERROR(SUM(Data!J34,Data!J121)/SUM(Data!J5,Data!J121,Data!J150),0) -> 0 | M15: =IFERROR(SUM(Data!K34,Data!K121)/SUM(Data!K5,Data!K121,Data!K150),0) -> 0 | N15: =IFERROR(SUM(Data!L34,Data!L121)/SUM(Data!L5,Data!L121,Data!L150),0) -> 0 | R15: All Payer | S15: =IFERROR(SUM(Data!D44,Data!D123)/SUM(Data!D15,Data!D123,Data!D152),0) -> 0 | T15: =IFERROR(SUM(Data!E44,Data!E123)/SUM(Data!E15,Data!E123,Data!E152),0) -> 0 | U15: =IFERROR(SUM(Data!F44,Data!F123)/SUM(Data!F15,Data!F123,Data!F152),0) -> 0 | V15: =IFERROR(SUM(Data!G44,Data!G123)/SUM(Data!G15,Data!G123,Data!G152),0) -> 0 | W15: =IFERROR(SUM(Data!H44,Data!H123)/SUM(Data!H15,Data!H123,Data!H152),0) -> 0 | X15: =IFERROR(SUM(Data!I44,Data!I123)/SUM(Data!I15,Data!I123,Data!I152),0) -> 0 | Y15: =IFERROR(SUM(Data!J44,Data!J123)/SUM(Data!J15,Data!J123,Data!J152),0) -> 0 | Z15: =IFERROR(SUM(Data!K44,Data!K123)/SUM(Data!K15,Data!K123,Data!K152),0) -> 0 | AA15: =IFERROR(SUM(Data!L44,Data!L123)/SUM(Data!L15,Data!L123,Data!L152),0) -> 0
D16: Shifting | Q16: Shifting
E17: Medicare | F17: =IFERROR(Data!D35/Data!D6,0) -> 0 | G17: =IFERROR(Data!E35/Data!E6,0) -> 0 | H17: =IFERROR(Data!F35/Data!F6,0) -> 0.5 | I17: =IFERROR(Data!G35/Data!G6,0) -> 0.5 | J17: =IFERROR(Data!H35/Data!H6,0) -> 0.5 | K17: =IFERROR(Data!I35/Data!I6,0) -> 0.5 | L17: =IFERROR(Data!J35/Data!J6,0) -> 0.5 | M17: =IFERROR(Data!K35/Data!K6,0) -> 0.5 | N17: =IFERROR(Data!L35/Data!L6,0) -> 0.5 | R17: Medicare | S17: =IFERROR(Data!D51/Data!D22,0) -> 0 | T17: =IFERROR(Data!E51/Data!E22,0) -> 0 | U17: =IFERROR(Data!F51/Data!F22,0) -> 0.5 | V17: =IFERROR(Data!G51/Data!G22,0) -> 0.5 | W17: =IFERROR(Data!H51/Data!H22,0) -> 0.5 | X17: =IFERROR(Data!I51/Data!I22,0) -> 0.5 | Y17: =IFERROR(Data!J51/Data!J22,0) -> 0.5 | Z17: =IFERROR(Data!K51/Data!K22,0) -> 0.5 | AA17: =IFERROR(Data!L51/Data!L22,0) -> 0.5
E18: All Payer | F18: =IFERROR(SUM(Data!D35,Data!D122)/SUM(Data!D6,Data!D122,Data!D151),0) -> 0 | G18: =IFERROR(SUM(Data!E35,Data!E122)/SUM(Data!E6,Data!E122,Data!E151),0) -> 0 | H18: =IFERROR(SUM(Data!F35,Data!F122)/SUM(Data!F6,Data!F122,Data!F151),0) -> 0.5 | I18: =IFERROR(SUM(Data!G35,Data!G122)/SUM(Data!G6,Data!G122,Data!G151),0) -> 0.5 | J18: =IFERROR(SUM(Data!H35,Data!H122)/SUM(Data!H6,Data!H122,Data!H151),0) -> 0.5 | K18: =IFERROR(SUM(Data!I35,Data!I122)/SUM(Data!I6,Data!I122,Data!I151),0) -> 0.5 | L18: =IFERROR(SUM(Data!J35,Data!J122)/SUM(Data!J6,Data!J122,Data!J151),0) -> 0.5 | M18: =IFERROR(SUM(Data!K35,Data!K122)/SUM(Data!K6,Data!K122,Data!K151),0) -> 0.5 | N18: =IFERROR(SUM(Data!L35,Data!L122)/SUM(Data!L6,Data!L122,Data!L151),0) -> 0.5 | R18: All Payer | S18: =IFERROR(SUM(Data!D51,Data!D125)/SUM(Data!D22,Data!D154,Data!D125),0) -> 0 | T18: =IFERROR(SUM(Data!E51,Data!E125)/SUM(Data!E22,Data!E154,Data!E125),0) -> 0 | U18: =IFERROR(SUM(Data!F51,Data!F125)/SUM(Data!F22,Data!F154,Data!F125),0) -> 0.5 | V18: =IFERROR(SUM(Data!G51,Data!G125)/SUM(Data!G22,Data!G154,Data!G125),0) -> 0.5 | W18: =IFERROR(SUM(Data!H51,Data!H125)/SUM(Data!H22,Data!H154,Data!H125),0) -> 0.5 | X18: =IFERROR(SUM(Data!I51,Data!I125)/SUM(Data!I22,Data!I154,Data!I125),0) -> 0.5 | Y18: =IFERROR(SUM(Data!J51,Data!J125)/SUM(Data!J22,Data!J154,Data!J125),0) -> 0.5 | Z18: =IFERROR(SUM(Data!K51,Data!K125)/SUM(Data!K22,Data!K154,Data!K125),0) -> 0.5 | AA18: =IFERROR(SUM(Data!L51,Data!L125)/SUM(Data!L22,Data!L154,Data!L125),0) -> 0.5
C22: MIPS Adjustment -2019 | H22: MIPS Adjustment -2020 | L22: MIPS Adjustment -2021 | P22: MIPS Adjustment -2022 | T22: MIPS Adjustment -2023 | X22: MIPS Adjustment -2024 | AB22: MIPS Adjustment -2025 | AF22: MIPS Adjustment -2026
C23: Min | D23: Max | E23: slope | F23: Intercept | H23: Min | I23: Max | J23: slope | K23: Intercept | L23: Min | M23: Max | N23: slope | O23: Intercept | P23: Min | Q23: Max | R23: slope | S23: Intercept | T23: Min | U23: Max | V23: slope | W23: Intercept | X23: Min | Y23: Max | Z23: slope | AA23: Intercept | AB23: Min | AC23: Max | AD23: slope | AE23: Intercept | AF23: Min | AG23: Max | AH23: slope | AI23: Intercept
C24: 0 | D24: 0.25 | E24: 0 | F24: =MIPS_MIN_2019 -> -0.04 | H24: 0 | I24: 0.25 | J24: 0 | K24: =MIPS_MIN_2020 -> -0.05 | L24: 0 | M24: 0.25 | N24: 0 | O24: =MIPS_MIN_2021 -> -0.07 | P24: 0 | Q24: 0.25 | R24: 0 | S24: =MIPS_MIN_2022 -> -0.09 | T24: 0 | U24: 0.25 | V24: 0 | W24: =MIPS_MIN_2023 -> -0.09 | X24: 0 | Y24: 0.25 | Z24: 0 | AA24: =MIPS_MIN_2024 -> -0.09 | AB24: 0 | AC24: 0.25 | AD24: 0 | AE24: =MIPS_MIN_2025 -> -0.09 | AF24: 0 | AG24: 0.25 | AH24: 0 | AI24: =MIPS_MIN_2026 -> -0.09
C25: 0.2501 | D25: 1 | E25: =MIPS_MAX_2019 -> 0.002 | F25: =F24 -> -0.04 | H25: 0.2501 | I25: 1 | J25: =MIPS_MAX_2020 -> 0.006 | K25: =K24 -> -0.05 | L25: 0.2501 | M25: 1 | N25: =MIPS_MAX_2021 -> 0.015 | O25: =O24 -> -0.07 | P25: 0.2501 | Q25: 1 | R25: =MIPS_MAX_2022 -> 0.09 | S25: =S24 -> -0.09 | T25: 0.2501 | U25: 1 | V25: =MIPS_MAX_2023 -> 0.09 | W25: =W24 -> -0.09 | X25: 0.2501 | Y25: 1 | Z25: =MIPS_MAX_2024 -> 0.09 | AA25: =AA24 -> -0.09 | AB25: 0.2501 | AC25: 1 | AD25: =MIPS_MAX_2025 -> 0.09 | AE25: =AE24 -> -0.09 | AF25: 0.2501 | AG25: 1 | AH25: =MIPS_MAX_2026 -> 0.09 | AI25: =AI24 -> -0.09
C26: 1.0001 | D26: =100/Assumptions!E30 -> 33.33333333 | E26: =E25/(D26-1) -> 6.18556701e-05 | F26: =-E26 -> -6.18556701e-05 | H26: 1.0001 | I26: =100/Assumptions!F30 -> 6.666666667 | J26: =J25/(I26-1) -> 0.001058823529 | K26: =-J26 -> -0.001058823529 | L26: 1.0001 | M26: =100/Assumptions!G30 -> 3.333333333 | N26: =N25/(M26-1) -> 0.006428571429 | O26: =-N26 -> -0.006428571429 | P26: 1.0001 | Q26: =100/Assumptions!H30 -> 1.666666667 | R26: =R25/(Q26-1) -> 0.135 | S26: =-R26 -> -0.135 | T26: 1.0001 | U26: =100/Assumptions!I30 -> 1.666666667 | V26: =V25/(U26-1) -> 0.135 | W26: =-V26 -> -0.135 | X26: 1.0001 | Y26: =100/Assumptions!J30 -> 1.666666667 | Z26: =Z25/(Y26-1) -> 0.135 | AA26: =-Z26 -> -0.135 | AB26: 1.0001 | AC26: =100/Assumptions!K30 -> 1.666666667 | AD26: =AD25/(AC26-1) -> 0.135 | AE26: =-AD26 -> -0.135 | AF26: 1.0001 | AG26: =100/Assumptions!L30 -> 1.666666667 | AH26: =AH25/(AG26-1) -> 0.135 | AI26: =-AH26 -> -0.135
C29: =VLOOKUP('Input by Entity'!D48,$C$24:$F$26,3)*'Input by Entity'!D48+VLOOKUP('Input by Entity'!D48,$C$24:$F$26,4) -> 0.0007216494845 | H29: =VLOOKUP('Input by Entity'!E48,$H$24:$K$26,3)*'Input by Entity'!E48+VLOOKUP('Input by Entity'!E48,$H$24:$K$26,4) -> 0.001623529412 | L29: =VLOOKUP('Input by Entity'!F48,$L$24:$O$26,3)*'Input by Entity'!F48+VLOOKUP('Input by Entity'!F48,$L$24:$O$26,4) -> 0.006214285714 | P29: =VLOOKUP('Input by Entity'!G48,$P$24:$S$26,3)*'Input by Entity'!G48+VLOOKUP('Input by Entity'!G48,$P$24:$S$26,4) -> -0.00825 | T29: =VLOOKUP('Input by Entity'!H48,$T$24:$W$26,3)*'Input by Entity'!H48+VLOOKUP('Input by Entity'!H48,$T$24:$W$26,4) -> -0.00825 | X29: =VLOOKUP('Input by Entity'!I48,$X$24:$AA$26,3)*'Input by Entity'!I48+VLOOKUP('Input by Entity'!I48,$X$24:$AA$26,4) -> -0.00825 | AB29: =VLOOKUP('Input by Entity'!J48,$AB$24:$AE$26,3)*'Input by Entity'!J48+VLOOKUP('Input by Entity'!J48,$AB$24:$AE$26,4) -> -0.00825 | AF29: =VLOOKUP('Input by Entity'!K48,$AB$24:$AE$26,3)*'Input by Entity'!K48+VLOOKUP('Input by Entity'!K48,$AB$24:$AE$26,4) -> -0.00825
C32: Addtl MIPS -2019 | H32: Addtl MIPS-2020 | L32: Addtl MIPS-2021 | P32: Addtl MIPS-2022 | T32: Addtl MIPS-2023 | X32: Addtl MIPS-2024 | AB32: Addtl MIPS-2025 | AF32: Addtl MIPS-2026
C33: Min | D33: Max | E33: slope | F33: Intercept | H33: Min | I33: Max | J33: slope | K33: Intercept | L33: Min | M33: Max | N33: slope | O33: Intercept | P33: Min | Q33: Max | R33: slope | S33: Intercept | T33: Min | U33: Max | V33: slope | W33: Intercept | X33: Min | Y33: Max | Z33: slope | AA33: Intercept | AB33: Min | AC33: Max | AD33: slope | AE33: Intercept | AF33: Min | AG33: Max | AH33: slope | AI33: Intercept
C34: 0 | D34: 0.999 | E34: 0 | F34: 0 | H34: 0 | I34: 0.999 | J34: 0 | K34: 0 | L34: 0 | M34: 0.999 | N34: 0 | O34: 0 | P34: 0 | Q34: 0.999 | R34: 0 | S34: 0 | T34: 0 | U34: 0.999 | V34: 0 | W34: 0 | X34: 0 | Y34: 0.999 | Z34: 0 | AA34: 0 | AB34: 0 | AC34: 0.999 | AD34: 0 | AE34: 0 | AF34: 0 | AG34: 0.999 | AH34: 0 | AI34: 0
C35: 1 | D35: =IFERROR(100/Assumptions!E38,1) -> 1.428571429 | E35: =IFERROR((0.1-0.5/100)/(D35-1),0) -> 0.2216666667 | F35: =0.5/100-E35 -> -0.2166666667 | H35: 1 | I35: =IFERROR(100/Assumptions!F38,1) -> 1.428571429 | J35: =IFERROR((0.1-0.5/100)/(I35-1),0) -> 0.2216666667 | K35: =0.5/100-J35 -> -0.2166666667 | L35: 1 | M35: =IFERROR(100/Assumptions!G38,1) -> 1.333333333 | N35: =IFERROR((0.1-0.5/100)/(M35-1),0) -> 0.285 | O35: =0.5/100-N35 -> -0.28 | P35: 1 | Q35: =IFERROR(100/Assumptions!H38,1) -> 1.333333333 | R35: =IFERROR((0.1-0.5/100)/(Q35-1),0) -> 0.285 | S35: =0.5/100-R35 -> -0.28 | T35: 1 | U35: =IFERROR(100/Assumptions!I38,1) -> 1.25 | V35: =IFERROR((0.1-0.5/100)/(U35-1),0) -> 0.38 | W35: =0.5/100-V35 -> -0.375 | X35: 1 | Y35: =IFERROR(100/Assumptions!J38,1) -> 1.25 | Z35: =IFERROR((0.1-0.5/100)/(Y35-1),0) -> 0.38 | AA35: =0.5/100-Z35 -> -0.375 | AB35: 1 | AC35: =IFERROR(100/Assumptions!K38,1) -> 1.25 | AD35: =IFERROR((0.1-0.5/100)/(AC35-1),0) -> 0.38 | AE35: =0.5/100-AD35 -> -0.375 | AF35: 1 | AG35: =IFERROR(100/Assumptions!L38,1) -> 1.25 | AH35: =IFERROR((0.1-0.5/100)/(AG35-1),0) -> 0.38 | AI35: =0.5/100-AH35 -> -0.375
C38: =IFERROR(VLOOKUP('Input by Entity'!D48*Assumptions!$E$30/Assumptions!$E$38,$C$34:$F$35,3)*'Input by Entity'!D48*Assumptions!$E$30/Assumptions!$E$38+VLOOKUP('Input by Entity'!D48*Assumptions!$E$30/Assumptions!$E$38,$C$34:$F$35,4),0) -> 0 | H38: =IFERROR(VLOOKUP('Input by Entity'!E48*Assumptions!$F$30/Assumptions!$F$38,$H$34:$K$35,3)*'Input by Entity'!E48*Assumptions!$F$30/Assumptions!$F$38+VLOOKUP('Input by Entity'!E48*Assumptions!$F$30/Assumptions!$F$38,$H$34:$K$35,4),0) -> 0 | L38: =IFERROR(VLOOKUP('Input by Entity'!F48*Assumptions!$G$30/Assumptions!$G$38,$L$34:$O$35,3)*'Input by Entity'!F48*Assumptions!$G$30/Assumptions!$G$38+VLOOKUP('Input by Entity'!F48*Assumptions!$G$30/Assumptions!$G$38,$L$34:$O$35,4),0) -> 0 | P38: =IFERROR(VLOOKUP('Input by Entity'!G48*Assumptions!$H$30/Assumptions!$H$38,$P$34:$S$35,3)*'Input by Entity'!G48*Assumptions!$H$30/Assumptions!$H$38+VLOOKUP('Input by Entity'!G48*Assumptions!$H$30/Assumptions!$H$38,$P$34:$S$35,4),0) -> 0 | T38: =IFERROR(VLOOKUP('Input by Entity'!H48*Assumptions!$I$30/Assumptions!$I$38,$T$34:$W$35,3)*'Input by Entity'!H48*Assumptions!$I$30/Assumptions!$I$38+VLOOKUP('Input by Entity'!H48*Assumptions!$I$30/Assumptions!$I$38,$T$34:$W$35,4),0) -> 0 | X38: =IFERROR(VLOOKUP('Input by Entity'!I48*Assumptions!$J$30/Assumptions!$J$38,$X$34:$AA$35,3)*'Input by Entity'!I48*Assumptions!$J$30/Assumptions!$J$38+VLOOKUP('Input by Entity'!I48*Assumptions!$J$30/Assumptions!$J$38,$X$34:$AA$35,4),0) -> 0 | AB38: =IFERROR(VLOOKUP('Input by Entity'!J48*Assumptions!$K$30/Assumptions!$K$38,$AB$34:$AE$35,3)*'Input by Entity'!J48*Assumptions!$K$30/Assumptions!$K$38+VLOOKUP('Input by Entity'!J48*Assumptions!$K$30/Assumptions!$K$38,$AB$34:$AE$35,4),0) -> 0 | AF38: =IFERROR(VLOOKUP('Input by Entity'!K48*Assumptions!$L$30/Assumptions!$L$38,$AF$34:$AI$35,3)*'Input by Entity'!K48*Assumptions!$L$30/Assumptions!$L$38+VLOOKUP('Input by Entity'!K48*Assumptions!$L$30/Assumptions!$L$38,$AF$34:$AI$35,4),0) -> 0

Sheet Assumptions (hidden)
A1: OptumInsight MACRA Model
C3: Payment Yr | E3: =E4+2 -> 2019 | F3: =F4+2 -> 2020 | G3: 2021 | H3: 2022 | I3: 2023 | J3: 2024 | K3: 2025 | L3: 2026 | M3: 2027 | N3: 2028
C4: Performance Yr | E4: 2017 | F4: 2018 | G4: 2019 | H4: 2020 | I4: 2021 | J4: 2022 | K4: 2023 | L4: 2024 | M4: 2025 | N4: 2026
A5: FFS (MIPS Exempt)
A6: Physician Schedule Growth Rate | E6: 0.005 | F6: 0.005 | G6: 0.005 | H6: 0 | I6: 0 | J6: 0 | K6: 0 | L6: 0 | M6: 0 | N6: 0
A8: AAPM
A9: Physician Schedule Growth Rate | E9: 0.005 | F9: 0.005 | G9: 0.005 | H9: 0 | I9: 0 | J9: 0 | K9: 0 | L9: 0 | M9: 0 | N9: 0.0075
A10: AAPM Bonus Payment | G10: 0.05 | H10: 0.05 | I10: 0.05 | J10: 0.05 | K10: 0.05 | L10: 0.05 | M10: 0 | N10: 0
A12: MIPS
A13: Physician Schedule Growth Rate | E13: 0.005 | F13: 0.005 | G13: 0.005 | H13: 0 | I13: 0 | J13: 0 | K13: 0 | L13: 0 | M13: 0 | N13: 0.0025
A14: Min Payment | G14: -0.04 | H14: -0.05 | I14: -0.07 | J14: -0.09 | K14: -0.09 | L14: -0.09 | M14: -0.09 | N14: -0.09
A15: Max Payment | G15: 0.002 | H15: 0.006 | I15: 0.015 | J15: 0.09 | K15: 0.09 | L15: 0.09 | M15: 0.09 | N15: 0.09
A16: Additional Performance Adjustment | G16: 0 | H16: 0 | I16: 0 | J16: 0 | K16: 0 | L16: 0 | M16: 0 | N16: 0 | O16: <between 0.5% and 10%>
A20: QP Status (Y=1,PQP=2,N=0) - Baseline Patient | E20: =IF(INDIRECT("CDO_MCR_PT_Baseline_"&E3)>=INDIRECT("QP_MCR_PT_Threshold_"&E3),1,IF(INDIRECT("CDO_MCR_PT_Baseline_"&E3)>=INDIRECT("PQP_MCR_PT_Threshold_"&E3),2,0)) -> 0 | F20: =IF(INDIRECT("CDO_MCR_PT_Baseline_"&F3)>=INDIRECT("QP_MCR_PT_Threshold_"&F3),1,IF(INDIRECT("CDO_MCR_PT_Baseline_"&F3)>=INDIRECT("PQP_MCR_PT_Threshold_"&F3),2,0)) -> 0 | G20: =IF(INDIRECT("CDO_MCR_PT_Baseline_"&G3)>=INDIRECT("QP_MCR_PT_Threshold_"&G3),1,IF(INDIRECT("CDO_MCR_PT_Baseline_"&G3)>=INDIRECT("PQP_MCR_PT_Threshold_"&G3),IF(INDIRECT("CDO_AP_PT_Baseline_"&G3)>=INDIRECT("QP_AP_PT_Threshold_"&G3),1,IF(OR(INDIRECT("CDO_AP_PT_Baseline_"&G3)>=INDIRECT("PQP_AP_PT_Threshold_"&G3),INDIRECT("CDO_MCR_PT_Baseline_"&G3)>=INDIRECT("PQP_AP_PT_Threshold_"&G3)),2,0)),IF(INDIRECT("CDO_MCR_PT_Baseline_"&G3)>INDIRECT("PQP_MCR_PT_Threshold_"&G3),IF(OR(INDIRECT("CDO_AP_PT_Baseline_"&G3)>=INDIRECT("PQP_AP_PT_Threshold_"&G3),INDIRECT("CDO_MCR_PT_Baseline_"&G3)>=INDIRECT("PQP_MCR_PT_Threshold_"&G3)),2,0),0))) -> 0 | H20: =IF(INDIRECT("CDO_MCR_PT_Baseline_"&H3)>=INDIRECT("QP_MCR_PT_Threshold_"&H3),1,IF(INDIRECT("CDO_MCR_PT_Baseline_"&H3)>=INDIRECT("PQP_MCR_PT_Threshold_"&H3),IF(INDIRECT("CDO_AP_PT_Baseline_"&H3)>=INDIRECT("QP_AP_PT_Threshold_"&H3),1,IF(OR(INDIRECT("CDO_AP_PT_Baseline_"&H3)>=INDIRECT("PQP_AP_PT_Threshold_"&H3),INDIRECT("CDO_MCR_PT_Baseline_"&H3)>=INDIRECT("PQP_AP_PT_Threshold_"&H3)),2,0)),IF(INDIRECT("CDO_MCR_PT_Baseline_"&H3)>INDIRECT("PQP_MCR_PT_Threshold_"&H3),IF(OR(INDIRECT("CDO_AP_PT_Baseline_"&H3)>=INDIRECT("PQP_AP_PT_Threshold_"&H3),INDIRECT("CDO_MCR_PT_Baseline_"&H3)>=INDIRECT("PQP_MCR_PT_Threshold_"&H3)),2,0),0))) -> 0 | I20: 0 | J20: 0 | K20: 0 | L20: 0 | M20: << Patient Count
A21: QP Status (Y=1,PQP=2,N=0) - Baseline Revenue | E21: =IF(INDIRECT("CDO_MCR_REV_Baseline_"&E3)>=INDIRECT("QP_MCR_REV_Threshold_"&E3),1,IF(INDIRECT("CDO_MCR_REV_Baseline_"&E3)>=INDIRECT("PQP_MCR_REV_Threshold_"&E3),2,0)) -> 0 | F21: =IF(INDIRECT("CDO_MCR_REV_Baseline_"&F3)>=INDIRECT("QP_MCR_REV_Threshold_"&F3),1,IF(INDIRECT("CDO_MCR_REV_Baseline_"&F3)>=INDIRECT("PQP_MCR_REV_Threshold_"&F3),2,0)) -> 0 | G21: =IF(INDIRECT("CDO_MCR_REV_Baseline_"&G3)>=INDIRECT("QP_MCR_REV_Threshold_"&G3),1,IF(INDIRECT("CDO_MCR_REV_Baseline_"&G3)>=INDIRECT("PQP_MCR_REV_Threshold_"&G3),IF(INDIRECT("CDO_AP_REV_Baseline_"&G3)>=INDIRECT("QP_AP_REV_Threshold_"&G3),1,IF(OR(INDIRECT("CDO_AP_REV_Baseline_"&G3)>=INDIRECT("PQP_AP_REV_Threshold_"&G3),INDIRECT("CDO_MCR_REV_Baseline_"&G3)>=INDIRECT("PQP_AP_REV_Threshold_"&G3)),2,0)),IF(INDIRECT("CDO_MCR_REV_Baseline_"&G3)>INDIRECT("PQP_MCR_REV_Threshold_"&G3),IF(OR(INDIRECT("CDO_AP_REV_Baseline_"&G3)>=INDIRECT("PQP_AP_REV_Threshold_"&G3),INDIRECT("CDO_MCR_REV_Baseline_"&G3)>=INDIRECT("PQP_MCR_REV_Threshold_"&G3)),2,0),0))) -> 0 | H21: =IF(INDIRECT("CDO_MCR_REV_Baseline_"&H3)>=INDIRECT("QP_MCR_REV_Threshold_"&H3),1,IF(INDIRECT("CDO_MCR_REV_Baseline_"&H3)>=INDIRECT("PQP_MCR_REV_Threshold_"&H3),IF(INDIRECT("CDO_AP_REV_Baseline_"&H3)>=INDIRECT("QP_AP_REV_Threshold_"&H3),1,IF(OR(INDIRECT("CDO_AP_REV_Baseline_"&H3)>=INDIRECT("PQP_AP_REV_Threshold_"&H3),INDIRECT("CDO_MCR_REV_Baseline_"&H3)>=INDIRECT("PQP_AP_REV_Threshold_"&H3)),2,0)),IF(INDIRECT("CDO_MCR_REV_Baseline_"&H3)>INDIRECT("PQP_MCR_REV_Threshold_"&H3),IF(OR(INDIRECT("CDO_AP_REV_Baseline_"&H3)>=INDIRECT("PQP_AP_REV_Threshold_"&H3),INDIRECT("CDO_MCR_REV_Baseline_"&H3)>=INDIRECT("PQP_MCR_REV_Threshold_"&H3)),2,0),0))) -> 0 | I21: =IF(INDIRECT("CDO_MCR_REV_Baseline_"&I3)>=INDIRECT("QP_MCR_REV_Threshold_"&I3),1,IF(INDIRECT("CDO_MCR_REV_Baseline_"&I3)>=INDIRECT("PQP_MCR_REV_Threshold_"&I3),IF(INDIRECT("CDO_AP_REV_Baseline_"&I3)>=INDIRECT("QP_AP_REV_Threshold_"&I3),1,IF(OR(INDIRECT("CDO_AP_REV_Baseline_"&I3)>=INDIRECT("PQP_AP_REV_Threshold_"&I3),INDIRECT("CDO_MCR_REV_Baseline_"&I3)>=INDIRECT("PQP_AP_REV_Threshold_"&I3)),2,0)),IF(INDIRECT("CDO_MCR_REV_Baseline_"&I3)>INDIRECT("PQP_MCR_REV_Threshold_"&I3),IF(OR(INDIRECT("CDO_AP_REV_Baseline_"&I3)>=INDIRECT("PQP_AP_REV_Threshold_"&I3),INDIRECT("CDO_MCR_REV_Baseline_"&I3)>=INDIRECT("PQP_MCR_REV_Threshold_"&I3)),2,0),0))) -> 0 | J21: 0 | K21: 0 | L21: 0 | M21: << Revenue Count
A22: QP Status (Y=1,PQP=2,N=0) - Baseline | E22: =IF(OR(E21=1,E20=1),1,IF(AND(E20=0,E21=0),0,2)) -> 0 | F22: 0 | G22: 0 | H22: 0 | I22: 0 | J22: 0 | K22: 0 | L22: 0 | M22: << Determined QP status
A23: QP Status (Y=1,PQP=2,N=0) - Shifting Patient | E23: =IF(INDIRECT("CDO_MCR_PT_Shift_"&E3)>=INDIRECT("QP_MCR_PT_Threshold_"&E3),1,IF(INDIRECT("CDO_MCR_PT_Shift_"&E3)>=INDIRECT("PQP_MCR_PT_Threshold_"&E3),2,0)) -> 0 | F23: =IF(INDIRECT("CDO_MCR_PT_Shift_"&F3)>=INDIRECT("QP_MCR_PT_Threshold_"&F3),1,IF(INDIRECT("CDO_MCR_PT_Shift_"&F3)>=INDIRECT("PQP_MCR_PT_Threshold_"&F3),2,0)) -> 0 | G23: =IF(INDIRECT("CDO_MCR_PT_Shift_"&G3)>=INDIRECT("QP_MCR_PT_Threshold_"&G3),1,IF(INDIRECT("CDO_MCR_PT_Shift_"&G3)>=INDIRECT("PQP_MCR_PT_Threshold_"&G3),IF(INDIRECT("CDO_AP_PT_Shift_"&G3)>=INDIRECT("QP_AP_PT_Threshold_"&G3),1,IF(OR(INDIRECT("CDO_AP_PT_Shift_"&G3)>=INDIRECT("PQP_AP_PT_Threshold_"&G3),INDIRECT("CDO_MCR_PT_Shift_"&G3)>=INDIRECT("PQP_AP_PT_Threshold_"&G3)),2,0)),IF(INDIRECT("CDO_MCR_PT_Shift_"&G3)>INDIRECT("PQP_MCR_PT_Threshold_"&G3),IF(OR(INDIRECT("CDO_AP_PT_Shift_"&G3)>=INDIRECT("PQP_AP_PT_Threshold_"&G3),INDIRECT("CDO_MCR_PT_Shift_"&G3)>=INDIRECT("PQP_MCR_PT_Threshold_"&G3)),2,0),0))) -> 1 | H23: 1 | I23: 1 | J23: 1 | K23: 1 | L23: 1 | M23: << Patient Count
A24: QP Status (Y=1,PQP=2,N=0) - Shifting Revenue | E24: =IF(INDIRECT("CDO_MCR_REV_Shift_"&E3)>=INDIRECT("QP_MCR_REV_Threshold_"&E3),1,IF(INDIRECT("CDO_MCR_REV_Shift_"&E3)>=INDIRECT("PQP_MCR_REV_Threshold_"&E3),2,0)) -> 0 | F24: =IF(INDIRECT("CDO_MCR_REV_Shift_"&F3)>=INDIRECT("QP_MCR_REV_Threshold_"&F3),1,IF(INDIRECT("CDO_MCR_REV_Shift_"&F3)>=INDIRECT("PQP_MCR_REV_Threshold_"&F3),2,0)) -> 0 | G24: =IF(INDIRECT("CDO_MCR_REV_Shift_"&G3)>=INDIRECT("QP_MCR_REV_Threshold_"&G3),1,IF(INDIRECT("CDO_MCR_REV_Shift_"&G3)>=INDIRECT("PQP_MCR_REV_Threshold_"&G3),IF(INDIRECT("CDO_AP_REV_Shift_"&G3)>=INDIRECT("QP_AP_REV_Threshold_"&G3),1,IF(OR(INDIRECT("CDO_AP_REV_Shift_"&G3)>=INDIRECT("PQP_AP_REV_Threshold_"&G3),INDIRECT("CDO_MCR_REV_Shift_"&G3)>=INDIRECT("PQP_AP_REV_Threshold_"&G3)),2,0)),IF(INDIRECT("CDO_MCR_REV_Shift_"&G3)>INDIRECT("PQP_MCR_REV_Threshold_"&G3),IF(OR(INDIRECT("CDO_AP_REV_Shift_"&G3)>=INDIRECT("PQP_AP_REV_Threshold_"&G3),INDIRECT("CDO_MCR_REV_Shift_"&G3)>=INDIRECT("PQP_MCR_REV_Threshold_"&G3)),2,0),0))) -> 1 | H24: =IF(INDIRECT("CDO_MCR_REV_Shift_"&H3)>=INDIRECT("QP_MCR_REV_Threshold_"&H3),1,IF(INDIRECT("CDO_MCR_REV_Shift_"&H3)>=INDIRECT("PQP_MCR_REV_Threshold_"&H3),IF(INDIRECT("CDO_AP_REV_Shift_"&H3)>=INDIRECT("QP_AP_REV_Threshold_"&H3),1,IF(OR(INDIRECT("CDO_AP_REV_Shift_"&H3)>=INDIRECT("PQP_AP_REV_Threshold_"&H3),INDIRECT("CDO_MCR_REV_Shift_"&H3)>=INDIRECT("PQP_AP_REV_Threshold_"&H3)),2,0)),IF(INDIRECT("CDO_MCR_REV_Shift_"&H3)>INDIRECT("PQP_MCR_REV_Threshold_"&H3),IF(OR(INDIRECT("CDO_AP_REV_Shift_"&H3)>=INDIRECT("PQP_AP_REV_Threshold_"&H3),INDIRECT("CDO_MCR_REV_Shift_"&H3)>=INDIRECT("PQP_MCR_REV_Threshold_"&H3)),2,0),0))) -> 1 | I24: 2 | J24: 2 | K24: 2 | L24: 2 | M24: << Revenue Count
A25: QP Status (Y=1,PQP=2,N=0) - Shifting | E25: =IF(OR(E24=1,E23=1),1,IF(AND(E23=0,E24=0),0,2)) -> 0 | F25: 0 | G25: 1 | H25: 1 | I25: 1 | J25: 1 | K25: 1 | L25: 1 | M25: << Determined QP status
A26: Participate in MIPS (Y=1,N=0)-Baseline | E26: =IF(OR(E22=0,AND(E22=2,'Input by Entity'!D47>0)),1,0) -> 1 | F26: =IF(OR(F22=0,AND(F22=2,'Input by Entity'!E47>0)),1,0) -> 1 | G26: =IF(OR(G22=0,AND(G22=2,'Input by Entity'!F47>0)),1,0) -> 1 | H26: =IF(OR(H22=0,AND(H22=2,'Input by Entity'!G47>0)),1,0) -> 1 | I26: =IF(OR(I22=0,AND(I22=2,'Input by Entity'!H47>0)),1,0) -> 1 | J26: =IF(OR(J22=0,AND(J22=2,'Input by Entity'!I47>0)),1,0) -> 1 | K26: =IF(OR(K22=0,AND(K22=2,'Input by Entity'!J47>0)),1,0) -> 1 | L26: =IF(OR(L22=0,AND(L22=2,'Input by Entity'!K47>0)),1,0) -> 1
A27: Participate in MIPS (Y=1,N=0)-Shifting | E27: =IF(OR(E25=0,AND(E25=2,'Input by Entity'!D47>0)),1,0) -> 1 | F27: =IF(OR(F25=0,AND(F25=2,'Input by Entity'!E47>0)),1,0) -> 1 | G27: =IF(OR(G25=0,AND(G25=2,'Input by Entity'!F47>0)),1,0) -> 0 | H27: =IF(OR(H25=0,AND(H25=2,'Input by Entity'!G47>0)),1,0) -> 0 | I27: =IF(OR(I25=0,AND(I25=2,'Input by Entity'!H47>0)),1,0) -> 0 | J27: =IF(OR(J25=0,AND(J25=2,'Input by Entity'!I47>0)),1,0) -> 0 | K27: =IF(OR(K25=0,AND(K25=2,'Input by Entity'!J47>0)),1,0) -> 0 | L27: =IF(OR(L25=0,AND(L25=2,'Input by Entity'!K47>0)),1,0) -> 0
A30: CPS Performance Threshold | E30: 3 | F30: 15 | G30: 30 | H30: 60 | I30: =H30 -> 60 | J30: =I30 -> 60 | K30: 60 | L30: 60 | M30: 60 | N30: 60
A31: (CMS calculates - Median)
A33: Medical CPI (Baseline Cost) | E33: 0.021
A35: MIPS Scaling Factor | E35: 1 | F35: 1 | G35: 1 | H35: 1 | I35: 1 | J35: 1 | K35: 1 | L35: 1 | M35: 1 | N35: 1
A36: (CMS calculates - 1x to 3x; dependent upon budget neutrality)
A38: Exceptional Performance Threshold | E38: 70 | F38: 70 | G38: 75 | H38: 75 | I38: 80 | J38: 80 | K38: 80 | L38: 80 | M38: 80 | N38: 80
A39: (CMS calculates - top 25th percentile)
A41: Exceptional Performance Scaling Factor | E41: 0.168 | F41: 0.168 | G41: =F41 -> 0.168 | H41: 0.25 | I41: =H41 -> 0.25 | J41: 0.25 | K41: 0.25 | L41: 0.25 | M41: 0.25 | N41: 0.25
A42: (CMS calculates - dependent upon performance)

Sheet Data (hidden)
B2: =CDO_NAME &" --- Traditional Medicare - Total" -> 0 --- Traditional Medicare - Total
D4: ='Input by Entity'!D14 -> 2017 | E4: ='Input by Entity'!E14 -> 2018 | F4: ='Input by Entity'!F14 -> 2019 | G4: ='Input by Entity'!G14 -> 2020 | H4: ='Input by Entity'!H14 -> 2021 | I4: ='Input by Entity'!I14 -> 2022 | J4: ='Input by Entity'!J14 -> 2023 | K4: ='Input by Entity'!K14 -> 2024 | L4: ='Input by Entity'!L14 -> 2025 | M4: ='Input by Entity'!M14 -> 2026
B5: Patients | C5: Baseline Patient Count | D5: =SUM(D34,D63,D92) -> 1000 | E5: =SUM(E34,E63,E92) -> 1000 | F5: 1000 | G5: 1000 | H5: 1000 | I5: 1000 | J5: 1000 | K5: 1000 | L5: 1000 | M5: 1000
C6: Shifted Patient Count | D6: =SUM(D35,D64,D93) -> 1000 | E6: 1000 | F6: 1000 | G6: 1000 | H6: 1000 | I6: 1000 | J6: 1000 | K6: 1000 | L6: 1000 | M6: 1000
B7: Baseline Revenue | C7: Baseline | D7: =SUM(D36,D65,D94) -> 1000 | E7: 1021 | F7: 1042.441 | G7: 1064.332261 | H7: 1086.683238 | I7: 1109.503586 | J7: 1132.803162 | K7: 1156.592028 | L7: 1180.880461 | M7: 1205.67895
B8: Cost | C8: VBC on Baseline | D8: =SUM(D37,D66,D95) -> 0 | E8: 0 | F8: 0 | G8: 0 | H8: 0 | I8: 0 | J8: 0 | K8: 0 | L8: 0 | M8: 0
B9: Baseline Revenue | C9: Baseline | D9: =SUM(D38,D67,D96) -> 1000 | E9: 1021 | F9: 1042.441 | G9: 1064.332261 | H9: 1086.683238 | I9: 1109.503586 | J9: 1132.803162 | K9: 1156.592028 | L9: 1180.880461 | M9: 1205.67895
B10: Shift | C10: VBC on Baseline | D10: =SUM(D39,D68,D97) -> 0 | E10: 0 | F10: 0 | G10: 0 | H10: 0 | I10: 0 | J10: 0 | K10: 0 | L10: 0 | M10: 0
B11: MIPS | C11: Baseline with Fee Schedule | D11: =SUM(D40,D69,D98) -> 1000 | E11: 1005 | F11: 1010.025 | G11: 1010.025 | H11: 1010.025 | I11: 1010.025 | J11: 1010.025 | K11: 1010.025 | L11: 1010.025 | M11: 1012.550062
C12: VBC on Baseline with Fee Schedule | D12: =SUM(D41,D70,D99) -> 0 | E12: 0 | F12: 0 | G12: 0 | H12: 0 | I12: 0 | J12: 0 | K12: 0 | L12: 0 | M12: 0
C13: MIPS Minimum | F13: =SUM(F42,F71,F100) -> -40.401 | G13: =SUM(G42,G71,G100) -> -50.50125 | H13: -70.70175 | I13: -90.90225 | J13: -90.90225 | K13: -90.90225 | L13: -90.90225 | M13: -91.12950562
C14: MIPS Maximum | F14: =SUM(F43,F72,F101) -> 2.02005 | G14: 6.06015 | H14: 15.150375 | I14: 90.90225 | J14: 90.90225 | K14: 90.90225 | L14: 90.90225 | M14: 91.12950563
B15: AAPM | C15: Baseline with Fee Schedule | D15: =SUM(D44,D73,D102) -> 1000 | E15: 1005 | F15: 1010.025 | G15: 1010.025 | H15: 1010.025 | I15: 1010.025 | J15: 1010.025 | K15: 1010.025 | L15: 1010.025 | M15: 1017.600187
C16: VBC on Baseline with Fee Schedule | D16: =SUM(D45,D74,D103) -> 0 | E16: 0 | F16: 0 | G16: 0 | H16: 0 | I16: 0 | J16: 0 | K16: 0 | L16: 0 | M16: 0
C17: APM Payments | F17: 50.25 | G17: 50.50125 | H17: 50.50125 | I17: 50.50125 | J17: 50.50125 | K17: 50.50125 | L17: 0 | M17: 0
B18: MIPS - Patient Shift | C18: Baseline with Fee Schedule | D18: =SUM(D47,D76,D105) -> 1000 | E18: 1005 | F18: 1010.025 | G18: 1010.025 | H18: 1010.025 | I18: 1010.025 | J18: 1010.025 | K18: 1010.025 | L18: 1010.025 | M18: 1012.550062
C19: VBC on Baseline with Fee Schedule | D19: =SUM(D48,D77,D106) -> 0 | E19: 0 | F19: 0 | G19: 0 | H19: 0 | I19: 0 | J19: 0 | K19: 0 | L19: 0 | M19: 0
C20: MIPS Minimum | F20: =SUM(F49,F78,F107) -> -40.401 | G20: -50.50125 | H20: -70.70175 | I20: -90.90225 | J20: -90.90225 | K20: -90.90225 | L20: -90.90225 | M20: -91.12950562
C21: MIPS Maximum | F21: =SUM(F50,F79,F108) -> 2.02005 | G21: 6.06015 | H21: 15.150375 | I21: 90.90225 | J21: 90.90225 | K21: 90.90225 | L21: 90.90225 | M21: 91.12950563
B22: AAPM - Patient Shift | C22: Baseline with Fee Schedule | D22: =SUM(D51,D80,D109) -> 1000 | E22: 1005 | F22: 1010.025 | G22: 1010.025 | H22: 1010.025 | I22: 1010.025 | J22: 1010.025 | K22: 1010.025 | L22: 1010.025 | M22: 1017.600187
C23: VBC on Baseline with Fee Schedule | D23: =SUM(D52,D81,D110) -> 0 | E23: 0 | F23: 0 | G23: 0 | H23: 0 | I23: 0 | J23: 0 | K23: 0 | L23: 0 | M23: 0
C24: APM Payments | F24: 50.25 | G24: 50.50125 | H24: 50.50125 | I24: 50.50125 | J24: 50.50125 | K24: 50.50125 | L24: 0 | M24: 0
B25: Payments | C25: MIPS | D25: =SUM(D54,D83,D112) -> 0 | E25: 0 | F25: 0.7288840206 | G25: 1.639805294 | H25: =SUM(H54,H83,H112) -> 6.276583929 | I25: -8.33270625 | J25: -8.33270625 | K25: -8.33270625 | L25: -8.33270625 | M25: -8.353538016
C26: AAPM | D26: =SUM(D55,D84,D113) -> 0 | E26: 0 | F26: 0 | G26: 0 | H26: 0 | I26: 0 | J26: 0 | K26: 0 | L26: 0 | M26: 0
B27: Payments- Pt Shift | C27: MIPS | D27: =SUM(D56,D85,D114) -> 0 | E27: 0 | F27: 0.7288840206 | G27: 1.639805294 | H27: 0 | I27: 0 | J27: 0 | K27: 0 | L27: 0 | M27: 0
C28: AAPM | D28: =SUM(D57,D86,D115) -> 0 | E28: 0 | F28: 0 | G28: 0 | H28: 50.50125 | I28: 50.50125 | J28: 50.50125 | K28: 50.50125 | L28: 0 | M28: 0
B31: =CDO_NAME &" --- Medicare Advanced APM" -> 0 --- Medicare Advanced APM
D33: =D4 -> 2017 | E33: 2018 | F33: 2019 | G33: 2020 | H33: 2021 | I33: 2022 | J33: 2023 | K33: 2024 | L33: 2025 | M33: 2026
B34: Patients | C34: Baseline Patient Count | D34: =AAPM_Patient_count -> 0 | E34: =D34*(1+INDIRECT("AAPM_Pt_rate_"&E33)) -> 0 | F34: =E34*(1+INDIRECT("AAPM_Pt_rate_"&F33)) -> 0 | G34: 0 | H34: 0 | I34: 0 | J34: 0 | K34: 0 | L34: 0 | M34: 0
C35: Shifted Patient Count | D35: =D34 -> 0 | E35: =E$5*INDIRECT("AAPM_Pt_Dist_"&E33) -> 0 | F35: =F5*INDIRECT("AAPM_Pt_Dist_"&F33) -> 500 | G35: 500 | H35: 500 | I35: 500 | J35: 500 | K35: 500 | L35: 500 | M35: 500
B36: Baseline Revenue | C36: Baseline | D36: =Revenue*AAPM_Rev_Percent -> 0 | E36: =IFERROR(D36*E34/D34*(1+Medical_CPI),0) -> 0 | F36: 0 | G36: 0 | H36: 0 | I36: 0 | J36: 0 | K36: 0 | L36: 0 | M36: 0
B37: Cost | C37: VBC on Baseline | D37: =D36*INDIRECT("AAPM_Rsk_Shr_"&D33) -> 0 | E37: =E36*INDIRECT("AAPM_Rsk_Shr_"&E33) -> 0 | F37: =F36*INDIRECT("AAPM_Rsk_Shr_"&F33) -> 0 | G37: 0 | H37: 0 | I37: 0 | J37: 0 | K37: 0 | L37: 0 | M37: 0
B38: Baseline Revenue | C38: Baseline | D38: =Revenue*AAPM_Rev_Percent -> 0 | E38: =IFERROR(D$7/D$5*E35*(1+Medical_CPI),0) -> 0 | F38: 521.2205 | G38: 532.1661305 | H38: 543.3416192 | I38: 554.7517932 | J38: 566.4015809 | K38: 578.2960141 | L38: 590.4402304 | M38: 602.8394752
B39: Shift | C39: VBC on Baseline | D39: =D38*INDIRECT("AAPM_Rsk_Shr_"&D33) -> 0 | E39: =E38*INDIRECT("AAPM_Rsk_Shr_"&E33) -> 0 | F39: 0 | G39: 0 | H39: 0 | I39: 0 | J39: 0 | K39: 0 | L39: 0 | M39: 0
B40: MIPS | C40: Baseline with Fee Schedule | D40: =D36 -> 0 | E40: =IFERROR(D40*E34/D34*(1+INDIRECT("PartB_MIPS_"&E33)),0) -> 0 | F40: =IFERROR(E40*F34/E34*(1+INDIRECT("PartB_MIPS_"&F33)),0) -> 0 | G40: 0 | H40: 0 | I40: 0 | J40: 0 | K40: 0 | L40: 0 | M40: 0
C41: VBC on Baseline with Fee Schedule | D41: =D40*INDIRECT("AAPM_Rsk_Shr_"&D33) -> 0 | E41: =E40*INDIRECT("AAPM_Rsk_Shr_"&E33) -> 0 | F41: =F40*INDIRECT("AAPM_Rsk_Shr_"&F33) -> 0 | G41: 0 | H41: 0 | I41: 0 | J41: 0 | K41: 0 | L41: 0 | M41: 0
C42: MIPS Minimum | F42: =F40*INDIRECT("MIPS_MIN_"&F33) -> 0 | G42: =G40*INDIRECT("MIPS_MIN_"&G33) -> 0 | H42: 0 | I42: 0 | J42: 0 | K42: 0 | L42: 0 | M42: 0
C43: MIPS Maximum | F43: =F40*(((1+INDIRECT("MIPS_MAX_"&F33))*(1+INDIRECT("MIPS_Bonus_"&F33)))-1) -> 0 | G43: =G40*(((1+INDIRECT("MIPS_MAX_"&G33))*(1+INDIRECT("MIPS_Bonus_"&G33)))-1) -> 0 | H43: 0 | I43: 0 | J43: 0 | K43: 0 | L43: 0 | M43: 0
B44: AAPM | C44: Baseline with Fee Schedule | D44: =D36 -> 0 | E44: =IFERROR(D44*E34/D34*(1+INDIRECT("PartB_APM_"&E33)),0) -> 0 | F44: =IFERROR(E44*F34/E34*(1+INDIRECT("PartB_APM_"&F33)),0) -> 0 | G44: 0 | H44: 0 | I44: 0 | J44: 0 | K44: 0 | L44: 0 | M44: 0
C45: VBC on Baseline with Fee Schedule | D45: =D44*INDIRECT("AAPM_Rsk_Shr_"&D33) -> 0 | E45: =E44*INDIRECT("AAPM_Rsk_Shr_"&E33) -> 0 | F45: =F44*INDIRECT("AAPM_Rsk_Shr_"&F33) -> 0 | G45: 0 | H45: 0 | I45: 0 | J45: 0 | K45: 0 | L45: 0 | M45: 0
C46: APM Payments | F46: =E44*INDIRECT("AAPM_Bonus_"&F33) -> 0 | G46: =F44*INDIRECT("AAPM_Bonus_"&G33) -> 0 | H46: 0 | I46: 0 | J46: 0 | K46: 0 | L46: 0 | M46: 0
B47: MIPS - Patient Shift | C47: Baseline with Fee Schedule | D47: =D40 -> 0 | E47: =IFERROR(D$11/D$5*E35*(1+INDIRECT("PartB_MIPS_"&E33)),0) -> 0 | F47: =IFERROR(E$11/E$5*F35*(1+INDIRECT("PartB_MIPS_"&F33)),0) -> 505.0125 | G47: 505.0125 | H47: 505.0125 | I47: 505.0125 | J47: 505.0125 | K47: 505.0125 | L47: 505.0125 | M47: 506.2750312
C48: VBC on Baseline with Fee Schedule | D48: =D47*INDIRECT("AAPM_Rsk_Shr_"&D33) -> 0 | E48: =E47*INDIRECT("AAPM_Rsk_Shr_"&E33) -> 0 | F48: =F47*INDIRECT("AAPM_Rsk_Shr_"&F33) -> 0 | G48: =G47*INDIRECT("AAPM_Rsk_Shr_"&G33) -> 0 | H48: =H47*INDIRECT("AAPM_Rsk_Shr_"&H33) -> 0 | I48: =I47*INDIRECT("AAPM_Rsk_Shr_"&I33) -> 0 | J48: 0 | K48: 0 | L48: 0 | M48: 0
C49: MIPS Minimum | F49: =F47*INDIRECT("MIPS_MIN_"&F33) -> -20.2005 | G49: =G47*INDIRECT("MIPS_MIN_"&G33) -> -25.250625 | H49: -35.350875 | I49: -45.451125 | J49: -45.451125 | K49: -45.451125 | L49: -45.451125 | M49: -45.56475281
C50: MIPS Maximum | F50: =F47*(((1+INDIRECT("MIPS_MAX_"&F33))*(1+INDIRECT("MIPS_Bonus_"&F33)))-1) -> 1.010025 | G50: =G47*(((1+INDIRECT("MIPS_MAX_"&G33))*(1+INDIRECT("MIPS_Bonus_"&G33)))-1) -> 3.030075 | H50: 7.5751875 | I50: 45.451125 | J50: 45.451125 | K50: 45.451125 | L50: 45.451125 | M50: 45.56475281
B51: AAPM - Patient Shift | C51: Baseline with Fee Schedule | D51: =D38 -> 0 | E51: =IFERROR(D$15/D$5*E35*(1+INDIRECT("PartB_APM_"&E33)),0) -> 0 | F51: =IFERROR(E$15/E$5*F35*(1+INDIRECT("PartB_APM_"&F33)),0) -> 505.0125 | G51: 505.0125 | H51: 505.0125 | I51: 505.0125 | J51: 505.0125 | K51: 505.0125 | L51: 505.0125 | M51: 508.8000937
C52: VBC on Baseline with Fee Schedule | D52: =D51*INDIRECT("AAPM_Rsk_Shr_"&D33) -> 0 | E52: =E51*INDIRECT("AAPM_Rsk_Shr_"&E33) -> 0 | F52: =F51*INDIRECT("AAPM_Rsk_Shr_"&F33) -> 0 | G52: 0 | H52: 0 | I52: 0 | J52: 0 | K52: 0 | L52: 0 | M52: 0
C53: APM Payments | F53: =E51*INDIRECT("AAPM_Bonus_"&F33) -> 0 | G53: =F51*INDIRECT("AAPM_Bonus_"&G33) -> 25.250625 | H53: 25.250625 | I53: 25.250625 | J53: 25.250625 | K53: 25.250625 | L53: 0 | M53: 0
B54: Payments | C54: MIPS | F54: =F40*Assumptions!E$26*(INDIRECT("CDO_MIPS_"&F33)+INDIRECT("CDO_MIPS_Bonus_"&F33)) -> 0 | G54: =G40*Assumptions!F$26*(INDIRECT("CDO_MIPS_"&G33)+INDIRECT("CDO_MIPS_Bonus_"&G33)) -> 0 | H54: =H40*Assumptions!G$26*(INDIRECT("CDO_MIPS_"&H33)+INDIRECT("CDO_MIPS_Bonus_"&H33)) -> 0 | I54: =I40*Assumptions!H$26*(INDIRECT("CDO_MIPS_"&I33)+INDIRECT("CDO_MIPS_Bonus_"&I33)) -> 0 | J54: =J40*Assumptions!I$26*(INDIRECT("CDO_MIPS_"&J33)+INDIRECT("CDO_MIPS_Bonus_"&J33)) -> 0 | K54: =K40*Assumptions!J$26*(INDIRECT("CDO_MIPS_"&K33)+INDIRECT("CDO_MIPS_Bonus_"&K33)) -> 0 | L54: =L40*Assumptions!K$26*(INDIRECT("CDO_MIPS_"&L33)+INDIRECT("CDO_MIPS_Bonus_"&L33)) -> 0 | M54: =M40*Assumptions!L$26*(INDIRECT("CDO_MIPS_"&M33)+INDIRECT("CDO_MIPS_Bonus_"&M33)) -> 0
C55: AAPM | F55: =IF(Assumptions!E$22=1,F46,0) -> 0 | G55: =IF(Assumptions!F$22=1,G46,0) -> 0 | H55: =IF(Assumptions!G$22=1,H46,0) -> 0 | I55: =IF(Assumptions!H$22=1,I46,0) -> 0 | J55: =IF(Assumptions!I$22=1,J46,0) -> 0 | K55: =IF(Assumptions!J$22=1,K46,0) -> 0 | L55: =IF(Assumptions!K$22=1,L46,0) -> 0 | M55: =IF(Assumptions!L$22=1,M46,0) -> 0
B56: Payments- Pt Shift | C56: MIPS | F56: =F47*Assumptions!E$27*(INDIRECT("CDO_MIPS_"&F33)+INDIRECT("CDO_MIPS_Bonus_"&F33)) -> 0.3644420103 | G56: =G47*Assumptions!F$27*(INDIRECT("CDO_MIPS_"&G33)+INDIRECT("CDO_MIPS_Bonus_"&G33)) -> 0.8199026471 | H56: =H47*Assumptions!G$27*(INDIRECT("CDO_MIPS_"&H33)+INDIRECT("CDO_MIPS_Bonus_"&H33)) -> 0 | I56: =I47*Assumptions!H$27*(INDIRECT("CDO_MIPS_"&I33)+INDIRECT("CDO_MIPS_Bonus_"&I33)) -> 0 | J56: =J47*Assumptions!I$27*(INDIRECT("CDO_MIPS_"&J33)+INDIRECT("CDO_MIPS_Bonus_"&J33)) -> 0 | K56: =K47*Assumptions!J$27*(INDIRECT("CDO_MIPS_"&K33)+INDIRECT("CDO_MIPS_Bonus_"&K33)) -> 0 | L56: =L47*Assumptions!K$27*(INDIRECT("CDO_MIPS_"&L33)+INDIRECT("CDO_MIPS_Bonus_"&L33)) -> 0 | M56: =M47*Assumptions!L$27*(INDIRECT("CDO_MIPS_"&M33)+INDIRECT("CDO_MIPS_Bonus_"&M33)) -> 0
C57: AAPM | F57: =IF(Assumptions!E$25=1,F53,0) -> 0 | G57: =IF(Assumptions!F$25=1,G53,0) -> 0 | H57: =IF(Assumptions!G$25=1,H53,0) -> 25.250625 | I57: =IF(Assumptions!H$25=1,I53,0) -> 25.250625 | J57: =IF(Assumptions!I$25=1,J53,0) -> 25.250625 | K57: =IF(Assumptions!J$25=1,K53,0) -> 25.250625 | L57: =IF(Assumptions!K$25=1,L53,0) -> 0 | M57: =IF(Assumptions!L$25=1,M53,0) -> 0
B60: =CDO_NAME &" --- Medicare APM" -> 0 --- Medicare APM
D62: =D33 -> 2017 | E62: 2018 | F62: 2019 | G62: 2020 | H62: 2021 | I62: 2022 | J62: 2023 | K62: 2024 | L62: 2025 | M62: 2026
B63: Patients | C63: Baseline Patient Count | D63: =APM_Patient_count -> 0 | E63: =D63*(1+INDIRECT("APM_Pt_rate_"&E62)) -> 0 | F63: =E63*(1+INDIRECT("APM_Pt_rate_"&F62)) -> 0 | G63: 0 | H63: 0 | I63: 0 | J63: 0 | K63: 0 | L63: 0 | M63: 0
C64: Shifted Patient Count | D64: =D63 -> 0 | E64: =E$5*INDIRECT("APM_Pt_Dist_"&E62) -> 0 | F64: =F$5*INDIRECT("APM_Pt_Dist_"&F62) -> 0 | G64: 0 | H64: 0 | I64: 0 | J64: 0 | K64: 0 | L64: 0 | M64: 0
B65: Baseline Revenue | C65: Baseline | D65: =Revenue*APM_Rev_Percent -> 0 | E65: =IFERROR(D65*E63/D63*(1+Medical_CPI),0) -> 0 | F65: 0 | G65: 0 | H65: 0 | I65: 0 | J65: 0 | K65: 0 | L65: 0 | M65: 0
B66: Cost | C66: VBC on Baseline | D66: =D65*INDIRECT("APM_Rsk_Shr_"&D62) -> 0 | E66: =E65*INDIRECT("APM_Rsk_Shr_"&E62) -> 0 | F66: =F65*INDIRECT("APM_Rsk_Shr_"&F62) -> 0 | G66: 0 | H66: 0 | I66: 0 | J66: 0 | K66: 0 | L66: 0 | M66: 0
B67: Baseline Revenue | C67: Baseline | D67: =Revenue*APM_Rev_Percent -> 0 | E67: =IFERROR(D$7/D$5*E64*(1+Medical_CPI),0) -> 0 | F67: 0 | G67: 0 | H67: 0 | I67: 0 | J67: 0 | K67: 0 | L67: 0 | M67: 0
B68: Shift | C68: VBC on Baseline | D68: =D67*INDIRECT("APM_Rsk_Shr_"&D62) -> 0 | E68: =E67*INDIRECT("APM_Rsk_Shr_"&E62) -> 0 | F68: 0 | G68: 0 | H68: 0 | I68: 0 | J68: 0 | K68: 0 | L68: 0 | M68: 0
B69: MIPS | C69: Baseline with Fee Schedule | D69: =D65 -> 0 | E69: =IFERROR(D69*E63/D63*(1+INDIRECT("PartB_MIPS_"&E62)),0) -> 0 | F69: =IFERROR(E69*F63/E63*(1+INDIRECT("PartB_MIPS_"&F62)),0) -> 0 | G69: 0 | H69: 0 | I69: 0 | J69: 0 | K69: 0 | L69: 0 | M69: 0
C70: VBC on Baseline with Fee Schedule | D70: =D69*INDIRECT("APM_Rsk_Shr_"&D62) -> 0 | E70: =E69*INDIRECT("APM_Rsk_Shr_"&E62) -> 0 | F70: =F69*INDIRECT("APM_Rsk_Shr_"&F62) -> 0 | G70: 0 | H70: 0 | I70: 0 | J70: 0 | K70: 0 | L70: 0 | M70: 0
C71: MIPS Minimum | F71: =F69*INDIRECT("MIPS_MIN_"&F62) -> 0 | G71: =G69*INDIRECT("MIPS_MIN_"&G62) -> 0 | H71: 0 | I71: 0 | J71: 0 | K71: 0 | L71: 0 | M71: 0
C72: MIPS Maximum | F72: =F69*(((1+INDIRECT("MIPS_MAX_"&F62))*(1+INDIRECT("MIPS_Bonus_"&F62)))-1) -> 0 | G72: =G69*(((1+INDIRECT("MIPS_MAX_"&G62))*(1+INDIRECT("MIPS_Bonus_"&G62)))-1) -> 0 | H72: 0 | I72: 0 | J72: 0 | K72: 0 | L72: 0 | M72: 0
B73: AAPM | C73: Baseline with Fee Schedule | D73: =D65 -> 0 | E73: =IFERROR(D73*E63/D63*(1+INDIRECT("PartB_APM_"&E62)),0) -> 0 | F73: =IFERROR(E73*F63/E63*(1+INDIRECT("PartB_APM_"&F62)),0) -> 0 | G73: 0 | H73: 0 | I73: 0 | J73: 0 | K73: 0 | L73: 0 | M73: 0
C74: VBC on Baseline with Fee Schedule
C75: APM Payments | F75: =E73*INDIRECT("AAPM_Bonus_"&F62) -> 0 | G75: =F73*INDIRECT("AAPM_Bonus_"&G62) -> 0 | H75: =G73*INDIRECT("AAPM_Bonus_"&H62) -> 0 | I75: =H73*INDIRECT("AAPM_Bonus_"&I62) -> 0 | J75: =I73*INDIRECT("AAPM_Bonus_"&J62) -> 0 | K75: =J73*INDIRECT("AAPM_Bonus_"&K62) -> 0 | L75: =K73*INDIRECT("AAPM_Bonus_"&L62) -> 0 | M75: =L73*INDIRECT("AAPM_Bonus_"&M62) -> 0
B76: MIPS - Patient Shift | C76: Baseline with Fee Schedule | D76: =D69 -> 0 | E76: =IFERROR(D$11/D$5*E64*(1+INDIRECT("PartB_MIPS_"&E62)),0) -> 0 | F76: =IFERROR(E$11/E$5*F64*(1+INDIRECT("PartB_MIPS_"&F62)),0) -> 0 | G76: 0 | H76: 0 | I76: 0 | J76: 0 | K76: 0 | L76: 0 | M76: 0
C77: VBC on Baseline with Fee Schedule | D77: =D76*INDIRECT("APM_Rsk_Shr_"&D62) -> 0 | E77: =E76*INDIRECT("APM_Rsk_Shr_"&E62) -> 0 | F77: =F76*INDIRECT("APM_Rsk_Shr_"&F62) -> 0 | G77: 0 | H77: 0 | I77: 0 | J77: 0 | K77: 0 | L77: 0 | M77: 0
C78: MIPS Minimum | F78: =F76*INDIRECT("MIPS_MIN_"&F62) -> 0 | G78: =G76*INDIRECT("MIPS_MIN_"&G62) -> 0 | H78: 0 | I78: 0 | J78: 0 | K78: 0 | L78: 0 | M78: 0
C79: MIPS Maximum | F79: =F76*(((1+INDIRECT("MIPS_MAX_"&F62))*(1+INDIRECT("MIPS_Bonus_"&F62)))-1) -> 0 | G79: =G76*(((1+INDIRECT("MIPS_MAX_"&G62))*(1+INDIRECT("MIPS_Bonus_"&G62)))-1) -> 0 | H79: 0 | I79: 0 | J79: 0 | K79: 0 | L79: 0 | M79: 0
B80: AAPM - Patient Shift | C80: Baseline with Fee Schedule | D80: =D76 -> 0 | E80: =IFERROR(D$15/D$5*E64*(1+INDIRECT("PartB_APM_"&E62)),0) -> 0 | F80: =IFERROR(E$15/E$5*F64*(1+INDIRECT("PartB_APM_"&F62)),0) -> 0 | G80: 0 | H80: 0 | I80: 0 | J80: 0 | K80: 0 | L80: 0 | M80: 0
C81: VBC on Baseline with Fee Schedule
C82: APM Payments | F82: =E80*INDIRECT("AAPM_Bonus_"&F62) -> 0 | G82: =F80*INDIRECT("AAPM_Bonus_"&G62) -> 0 | H82: =G80*INDIRECT("AAPM_Bonus_"&H62) -> 0 | I82: =H80*INDIRECT("AAPM_Bonus_"&I62) -> 0 | J82: =I80*INDIRECT("AAPM_Bonus_"&J62) -> 0 | K82: =J80*INDIRECT("AAPM_Bonus_"&K62) -> 0 | L82: =K80*INDIRECT("AAPM_Bonus_"&L62) -> 0 | M82: =L80*INDIRECT("AAPM_Bonus_"&M62) -> 0
B83: Payments | C83: MIPS | F83: =F69*Assumptions!E$26*(INDIRECT("CDO_MIPS_"&F62)+INDIRECT("CDO_MIPS_Bonus_"&F62)) -> 0 | G83: =G69*Assumptions!F$26*(INDIRECT("CDO_MIPS_"&G62)+INDIRECT("CDO_MIPS_Bonus_"&G62)) -> 0 | H83: =H69*Assumptions!G$26*(INDIRECT("CDO_MIPS_"&H62)+INDIRECT("CDO_MIPS_Bonus_"&H62)) -> 0 | I83: =I69*Assumptions!H$26*(INDIRECT("CDO_MIPS_"&I62)+INDIRECT("CDO_MIPS_Bonus_"&I62)) -> 0 | J83: =J69*Assumptions!I$26*(INDIRECT("CDO_MIPS_"&J62)+INDIRECT("CDO_MIPS_Bonus_"&J62)) -> 0 | K83: =K69*Assumptions!J$26*(INDIRECT("CDO_MIPS_"&K62)+INDIRECT("CDO_MIPS_Bonus_"&K62)) -> 0 | L83: =L69*Assumptions!K$26*(INDIRECT("CDO_MIPS_"&L62)+INDIRECT("CDO_MIPS_Bonus_"&L62)) -> 0 | M83: =M69*Assumptions!L$26*(INDIRECT("CDO_MIPS_"&M62)+INDIRECT("CDO_MIPS_Bonus_"&M62)) -> 0
C84: AAPM | F84: =IF(Assumptions!E$22=1,F75,0) -> 0 | G84: =IF(Assumptions!F$22=1,G75,0) -> 0 | H84: =IF(Assumptions!G$22=1,H75,0) -> 0 | I84: =IF(Assumptions!H$22=1,I75,0) -> 0 | J84: =IF(Assumptions!I$22=1,J75,0) -> 0 | K84: =IF(Assumptions!J$22=1,K75,0) -> 0 | L84: =IF(Assumptions!K$22=1,L75,0) -> 0 | M84: =IF(Assumptions!L$22=1,M75,0) -> 0
B85: Payments- Pt Shift | C85: MIPS | F85: =F76*Assumptions!E$27*(INDIRECT("CDO_MIPS_"&F62)+INDIRECT("CDO_MIPS_Bonus_"&F62)) -> 0 | G85: =G76*Assumptions!F$27*(INDIRECT("CDO_MIPS_"&G62)+INDIRECT("CDO_MIPS_Bonus_"&G62)) -> 0 | H85: =H76*Assumptions!G$27*(INDIRECT("CDO_MIPS_"&H62)+INDIRECT("CDO_MIPS_Bonus_"&H62)) -> 0 | I85: =I76*Assumptions!H$27*(INDIRECT("CDO_MIPS_"&I62)+INDIRECT("CDO_MIPS_Bonus_"&I62)) -> 0 | J85: =J76*Assumptions!I$27*(INDIRECT("CDO_MIPS_"&J62)+INDIRECT("CDO_MIPS_Bonus_"&J62)) -> 0 | K85: =K76*Assumptions!J$27*(INDIRECT("CDO_MIPS_"&K62)+INDIRECT("CDO_MIPS_Bonus_"&K62)) -> 0 | L85: =L76*Assumptions!K$27*(INDIRECT("CDO_MIPS_"&L62)+INDIRECT("CDO_MIPS_Bonus_"&L62)) -> 0 | M85: =M76*Assumptions!L$27*(INDIRECT("CDO_MIPS_"&M62)+INDIRECT("CDO_MIPS_Bonus_"&M62)) -> 0
C86: AAPM | F86: =IF(Assumptions!E$25=1,F82,0) -> 0 | G86: =IF(Assumptions!F$25=1,G82,0) -> 0 | H86: =IF(Assumptions!G$25=1,H82,0) -> 0 | I86: =IF(Assumptions!H$25=1,I82,0) -> 0 | J86: =IF(Assumptions!I$25=1,J82,0) -> 0 | K86: =IF(Assumptions!J$25=1,K82,0) -> 0 | L86: =IF(Assumptions!K$25=1,L82,0) -> 0 | M86: =IF(Assumptions!L$25=1,M82,0) -> 0
B89: =CDO_NAME &" ---Medicare FFS" -> 0 ---Medicare FFS
D91: =D62 -> 2017 | E91: 2018 | F91: 2019 | G91: 2020 | H91: 2021 | I91: 2022 | J91: 2023 | K91: 2024 | L91: 2025 | M91: 2026
B92: Patients | C92: Baseline Patient Count | D92: =FFS_Patient_count -> 1000 | E92: =D92*(1+INDIRECT("FFS_Pt_rate_"&E91)) -> 1000 | F92: =E92*(1+INDIRECT("FFS_Pt_rate_"&F91)) -> 1000 | G92: 1000 | H92: 1000 | I92: 1000 | J92: 1000 | K92: 1000 | L92: 1000 | M92: 1000
C93: Shifted Patient Count | D93: =D92 -> 1000 | E93: =E$5*INDIRECT("FFS_Pt_Dist_"&E91) -> 1000 | F93: =F$5*INDIRECT("FFS_Pt_Dist_"&F91) -> 500 | G93: 500 | H93: 500 | I93: 500 | J93: 500 | K93: 500 | L93: 500 | M93: 500
B94: Baseline Revenue | C94: Baseline | D94: =Revenue*FFS_Rev_Percent -> 1000 | E94: =IFERROR(D94*E92/D92*(1+Medical_CPI),0) -> 1021 | F94: =IFERROR(E94*F92/E92*(1+Medical_CPI),0) -> 1042.441 | G94: 1064.332261 | H94: 1086.683238 | I94: 1109.503586 | J94: 1132.803162 | K94: 1156.592028 | L94: 1180.880461 | M94: 1205.67895
B95: Cost | C95: VBC on Baseline
B96: Baseline Revenue | C96: Baseline | D96: =Revenue*FFS_Rev_Percent -> 1000 | E96: =IFERROR(D$7/D$5*E93*(1+Medical_CPI),0) -> 1021 | F96: 521.2205 | G96: 532.1661305 | H96: 543.3416192 | I96: 554.7517932 | J96: 566.4015809 | K96: 578.2960141 | L96: 590.4402304 | M96: 602.8394752
B97: Shift | C97: VBC on Baseline
B98: MIPS | C98: Baseline with Fee Schedule | D98: =D94 -> 1000 | E98: =IFERROR(D98*E92/D92*(1+INDIRECT("PartB_MIPS_"&E91)),0) -> 1005 | F98: =IFERROR(E98*F92/E92*(1+INDIRECT("PartB_MIPS_"&F91)),0) -> 1010.025 | G98: 1010.025 | H98: 1010.025 | I98: 1010.025 | J98: 1010.025 | K98: 1010.025 | L98: 1010.025 | M98: 1012.550062
C99: VBC on Baseline with Fee Schedule
C100: MIPS Minimum | F100: =F98*INDIRECT("MIPS_MIN_"&F91) -> -40.401 | G100: =G98*INDIRECT("MIPS_MIN_"&G91) -> -50.50125 | H100: -70.70175 | I100: -90.90225 | J100: -90.90225 | K100: -90.90225 | L100: -90.90225 | M100: -91.12950562
C101: MIPS Maximum | F101: =F98*(((1+INDIRECT("MIPS_MAX_"&F91))*(1+INDIRECT("MIPS_Bonus_"&F91)))-1) -> 2.02005 | G101: =G98*(((1+INDIRECT("MIPS_MAX_"&G91))*(1+INDIRECT("MIPS_Bonus_"&G91)))-1) -> 6.06015 | H101: 15.150375 | I101: 90.90225 | J101: 90.90225 | K101: 90.90225 | L101: 90.90225 | M101: 91.12950563
B102: AAPM | C102: Baseline with Fee Schedule | D102: =D94 -> 1000 | E102: =IFERROR(D102*E92/D92*(1+INDIRECT("PartB_APM_"&E91)),0) -> 1005 | F102: =IFERROR(E102*F92/E92*(1+INDIRECT("PartB_APM_"&F91)),0) -> 1010.025 | G102: 1010.025 | H102: 1010.025 | I102: 1010.025 | J102: 1010.025 | K102: 1010.025 | L102: 1010.025 | M102: 1017.600187
C103: VBC on Baseline with Fee Schedule
C104: APM Payments | F104: =E102*INDIRECT("AAPM_Bonus_"&F91) -> 50.25 | G104: =F102*INDIRECT("AAPM_Bonus_"&G91) -> 50.50125 | H104: =G102*INDIRECT("AAPM_Bonus_"&H91) -> 50.50125 | I104: =H102*INDIRECT("AAPM_Bonus_"&I91) -> 50.50125 | J104: =I102*INDIRECT("AAPM_Bonus_"&J91) -> 50.50125 | K104: =J102*INDIRECT("AAPM_Bonus_"&K91) -> 50.50125 | L104: =K102*INDIRECT("AAPM_Bonus_"&L91) -> 0 | M104: =L102*INDIRECT("AAPM_Bonus_"&M91) -> 0
B105: MIPS - Patient Shift | C105: Baseline with Fee Schedule | D105: =D98 -> 1000 | E105: =IFERROR(D$11/D$5*E93*(1+INDIRECT("PartB_MIPS_"&E91)),0) -> 1005 | F105: =IFERROR(E$11/E$5*F93*(1+INDIRECT("PartB_MIPS_"&F91)),0) -> 505.0125 | G105: 505.0125 | H105: 505.0125 | I105: 505.0125 | J105: 505.0125 | K105: 505.0125 | L105: 505.0125 | M105: 506.2750312
C106: VBC on Baseline with Fee Schedule
C107: MIPS Minimum | F107: =F105*INDIRECT("MIPS_MIN_"&F91) -> -20.2005 | G107: =G105*INDIRECT("MIPS_MIN_"&G91) -> -25.250625 | H107: -35.350875 | I107: -45.451125 | J107: -45.451125 | K107: -45.451125 | L107: -45.451125 | M107: -45.56475281
C108: MIPS Maximum | F108: =F105*(((1+INDIRECT("MIPS_MAX_"&F91))*(1+INDIRECT("MIPS_Bonus_"&F91)))-1) -> 1.010025 | G108: =G105*(((1+INDIRECT("MIPS_MAX_"&G91))*(1+INDIRECT("MIPS_Bonus_"&G91)))-1) -> 3.030075 | H108: 7.5751875 | I108: 45.451125 | J108: 45.451125 | K108: 45.451125 | L108: 45.451125 | M108: 45.56475281
B109: AAPM - Patient Shift | C109: Baseline with Fee Schedule | D109: =D102 -> 1000 | E109: =IFERROR(D$15/D$5*E93*(1+INDIRECT("PartB_APM_"&E91)),0) -> 1005 | F109: =IFERROR(E$15/E$5*F93*(1+INDIRECT("PartB_APM_"&F91)),0) -> 505.0125 | G109: 505.0125 | H109: 505.0125 | I109: 505.0125 | J109: 505.0125 | K109: 505.0125 | L109: 505.0125 | M109: 508.8000937
C110: VBC on Baseline with Fee Schedule
C111: APM Payments | F111: =E109*INDIRECT("AAPM_Bonus_"&F91) -> 50.25 | G111: =F109*INDIRECT("AAPM_Bonus_"&G91) -> 25.250625 | H111: 25.250625 | I111: 25.250625 | J111: 25.250625 | K111: 25.250625 | L111: 0 | M111: 0
B112: Payments | C112: MIPS | F112: =F98*Assumptions!E$26*(INDIRECT("CDO_MIPS_"&F91)+INDIRECT("CDO_MIPS_Bonus_"&F91)) -> 0.7288840206 | G112: =G98*Assumptions!F$26*(INDIRECT("CDO_MIPS_"&G91)+INDIRECT("CDO_MIPS_Bonus_"&G91)) -> 1.639805294 | H112: =H98*Assumptions!G$26*(INDIRECT("CDO_MIPS_"&H91)+INDIRECT("CDO_MIPS_Bonus_"&H91)) -> 6.276583929 | I112: =I98*Assumptions!H$26*(INDIRECT("CDO_MIPS_"&I91)+INDIRECT("CDO_MIPS_Bonus_"&I91)) -> -8.33270625 | J112: =J98*Assumptions!I$26*(INDIRECT("CDO_MIPS_"&J91)+INDIRECT("CDO_MIPS_Bonus_"&J91)) -> -8.33270625 | K112: =K98*Assumptions!J$26*(INDIRECT("CDO_MIPS_"&K91)+INDIRECT("CDO_MIPS_Bonus_"&K91)) -> -8.33270625 | L112: =L98*Assumptions!K$26*(INDIRECT("CDO_MIPS_"&L91)+INDIRECT("CDO_MIPS_Bonus_"&L91)) -> -8.33270625 | M112: =M98*Assumptions!L$26*(INDIRECT("CDO_MIPS_"&M91)+INDIRECT("CDO_MIPS_Bonus_"&M91)) -> -8.353538016
C113: AAPM | F113: =IF(Assumptions!E$22=1,F104,0) -> 0 | G113: =IF(Assumptions!F$22=1,G104,0) -> 0 | H113: =IF(Assumptions!G$22=1,H104,0) -> 0 | I113: =IF(Assumptions!H$22=1,I104,0) -> 0 | J113: =IF(Assumptions!I$22=1,J104,0) -> 0 | K113: =IF(Assumptions!J$22=1,K104,0) -> 0 | L113: =IF(Assumptions!K$22=1,L104,0) -> 0 | M113: =IF(Assumptions!L$22=1,M104,0) -> 0
B114: Payments- Pt Shift | C114: MIPS | F114: =F105*Assumptions!E$27*(INDIRECT("CDO_MIPS_"&F91)+INDIRECT("CDO_MIPS_Bonus_"&F91)) -> 0.3644420103 | G114: =G105*Assumptions!F$27*(INDIRECT("CDO_MIPS_"&G91)+INDIRECT("CDO_MIPS_Bonus_"&G91)) -> 0.8199026471 | H114: =H105*Assumptions!G$27*(INDIRECT("CDO_MIPS_"&H91)+INDIRECT("CDO_MIPS_Bonus_"&H91)) -> 0 | I114: =I105*Assumptions!H$27*(INDIRECT("CDO_MIPS_"&I91)+INDIRECT("CDO_MIPS_Bonus_"&I91)) -> 0 | J114: =J105*Assumptions!I$27*(INDIRECT("CDO_MIPS_"&J91)+INDIRECT("CDO_MIPS_Bonus_"&J91)) -> 0 | K114: =K105*Assumptions!J$27*(INDIRECT("CDO_MIPS_"&K91)+INDIRECT("CDO_MIPS_Bonus_"&K91)) -> 0 | L114: =L105*Assumptions!K$27*(INDIRECT("CDO_MIPS_"&L91)+INDIRECT("CDO_MIPS_Bonus_"&L91)) -> 0 | M114: =M105*Assumptions!L$27*(INDIRECT("CDO_MIPS_"&M91)+INDIRECT("CDO_MIPS_Bonus_"&M91)) -> 0
C115: AAPM | F115: =IF(Assumptions!E$25=1,F111,0) -> 0 | G115: =IF(Assumptions!F$25=1,G111,0) -> 0 | H115: =IF(Assumptions!G$25=1,H111,0) -> 25.250625 | I115: =IF(Assumptions!H$25=1,I111,0) -> 25.250625 | J115: =IF(Assumptions!I$25=1,J111,0) -> 25.250625 | K115: =IF(Assumptions!J$25=1,K111,0) -> 25.250625 | L115: =IF(Assumptions!K$25=1,L111,0) -> 0 | M115: =IF(Assumptions!L$25=1,M111,0) -> 0
B118: =CDO_NAME &" --- Other Payer AAPM" -> 0 --- Other Payer AAPM
D120: =D91 -> 2017 | E120: 2018 | F120: 2019 | G120: 2020 | H120: 2021 | I120: 2022 | J120: 2023 | K120: 2024 | L120: 2025 | M120: 2026
B121: Patients | C121: Baseline Patient Count | D121: =Comm_Patient_count -> 0 | E121: =D121*(1+INDIRECT("Comm_Pt_rate_"&E120)) -> 0 | F121: =E121*(1+INDIRECT("Comm_Pt_rate_"&F120)) -> 0 | G121: 0 | H121: 0 | I121: 0 | J121: 0 | K121: 0 | L121: 0 | M121: 0
C122: Shifted Patient Count | D122: =D121 -> 0 | E122: =E121 -> 0 | F122: 0 | G122: 0 | H122: 0 | I122: 0 | J122: 0 | K122: 0 | L122: 0 | M122: 0
B123: Baseline Revenue | C123: Baseline | D123: =Revenue*Comm_Rev_Percent -> 0 | E123: =D123*(1+INDIRECT("Comm_Pt_rate_"&E120))*(1+Medical_CPI) -> 0 | F123: 0 | G123: 0 | H123: 0 | I123: 0 | J123: 0 | K123: 0 | L123: 0 | M123: 0
B124: Cost | C124: VBC on Baseline | E124: =E123*INDIRECT("Comm_Rsk_Shr_"&E120) -> 0 | F124: =F123*INDIRECT("Comm_Rsk_Shr_"&F120) -> 0 | G124: 0 | H124: 0 | I124: 0 | J124: 0 | K124: 0 | L124: 0 | M124: 0
B125: Baseline Revenue | C125: Baseline | D125: =Revenue*Comm_Rev_Percent -> 0 | E125: =D125*(1+INDIRECT("Comm_Pt_rate_"&E120))*(1+Medical_CPI) -> 0 | F125: 0 | G125: 0 | H125: 0 | I125: 0 | J125: 0 | K125: 0 | L125: 0 | M125: 0
B126: Shift | C126: VBC on Baseline | E126: =E125*INDIRECT("Comm_Rsk_Shr_"&E120) -> 0 | F126: =F125*INDIRECT("Comm_Rsk_Shr_"&F120) -> 0 | G126: 0 | H126: 0 | I126: 0 | J126: 0 | K126: 0 | L126: 0 | M126: 0
B127: MIPS | C127: Baseline with Fee Schedule
C128: VBC on Baseline with Fee Schedule
C129: MIPS Minimum
C130: MIPS Maximum
B131: AAPM | C131: Baseline with Fee Schedule
C132: VBC on Baseline with Fee Schedule
C133: APM Payments
B134: MIPS - Patient Shift | C134: Baseline with Fee Schedule
C135: VBC on Baseline with Fee Schedule
C136: MIPS Minimum
C137: MIPS Maximum
B138: AAPM - Patient Shift | C138: Baseline with Fee Schedule
C139: VBC on Baseline with Fee Schedule
C140: APM Payments
B141: Payments | C141: MIPS
C142: AAPM
B143: Payments- Pt Shift | C143: MIPS
C144: AAPM
B147: =CDO_NAME &" --- Other Payer non AAPM" -> 0 --- Other Payer non AAPM
D149: =D120 -> 2017 | E149: 2018 | F149: 2019 | G149: 2020 | H149: 2021 | I149: 2022 | J149: 2023 | K149: 2024 | L149: 2025 | M149: 2026
B150: Patients | C150: Baseline Patient Count | D150: =All_Other_Patient_count -> 0 | E150: =D150*(1+INDIRECT("All_other_Pt_rate_"&E149)) -> 0 | F150: =E150*(1+INDIRECT("All_other_Pt_rate_"&F149)) -> 0 | G150: 0 | H150: 0 | I150: 0 | J150: 0 | K150: 0 | L150: 0 | M150: 0
C151: Shifted Patient Count | D151: =D150 -> 0 | E151: =E150 -> 0 | F151: 0 | G151: 0 | H151: 0 | I151: 0 | J151: 0 | K151: 0 | L151: 0 | M151: 0
B152: Baseline Revenue | C152: Baseline | D152: =Revenue*All_Other_Rev_Percent -> 0 | E152: =D152*(1+INDIRECT("All_other_Pt_rate_"&E149))*(1+Medical_CPI) -> 0 | F152: 0 | G152: 0 | H152: 0 | I152: 0 | J152: 0 | K152: 0 | L152: 0 | M152: 0
C153: VBC on Baseline
B154: Baseline Revenue | C154: Baseline | D154: =Revenue*All_Other_Rev_Percent -> 0 | E154: =D154*(1+INDIRECT("All_other_Pt_rate_"&E149))*(1+Medical_CPI) -> 0 | F154: 0 | G154: 0 | H154: 0 | I154: 0 | J154: 0 | K154: 0 | L154: 0 | M154: 0
B155: Shift | C155: VBC on Baseline
B156: MIPS | C156: Baseline with Fee Schedule
C157: VBC on Baseline with Fee Schedule
C158: MIPS Minimum
C159: MIPS Maximum
B160: AAPM | C160: Baseline with Fee Schedule
C161: VBC on Baseline with Fee Schedule
C162: APM Payments
B163: MIPS - Patient Shift | C163: Baseline with Fee Schedule
C164: VBC on Baseline with Fee Schedule
C165: MIPS Minimum
C166: MIPS Maximum
B167: AAPM - Patient Shift | C167: Baseline with Fee Schedule
C168: VBC on Baseline with Fee Schedule
C169: APM Payments
B170: Payments | C170: MIPS
C171: AAPM
B172: Payments- Pt Shift | C172: MIPS
C173: AAPM

Sheet Revenue at Risk Summary
C1: MACRA/QPP - Provider Revenue Model - Revenue at Risk Summary
C3: =CDO_NAME &" Revenue in ( '000)" -> 0 Revenue in ( '000)
C4: Scenarios | D4: 2018 | E4: 2019 | F4: 2020 | G4: 2021 | H4: 2022 | I4: 2023 | J4: 2024 | K4: 2025 | L4: 2026 | M4: Total
C5: Baseline Cost (Overhead) | D5: =SUM(Data!E7,Data!E123,Data!E152,Data!E8,Data!E124) -> 1021 | E5: =SUM(Data!F7,Data!F123,Data!F152,Data!F8,Data!F124) -> 1042.441 | F5: =SUM(Data!G7,Data!G123,Data!G152,Data!G8,Data!G124) -> 1064.332261 | G5: =SUM(Data!H7,Data!H123,Data!H152,Data!H8,Data!H124) -> 1086.683238 | H5: =SUM(Data!I7,Data!I123,Data!I152,Data!I8,Data!I124) -> 1109.503586 | I5: =SUM(Data!J7,Data!J123,Data!J152,Data!J8,Data!J124) -> 1132.803162 | J5: =SUM(Data!K7,Data!K123,Data!K152,Data!K8,Data!K124) -> 1156.592028 | K5: =SUM(Data!L7,Data!L123,Data!L152,Data!L8,Data!L124) -> 1180.880461 | L5: =SUM(Data!M7,Data!M123,Data!M152,Data!M8,Data!M124) -> 1205.67895 | M5: =SUM(D5:L5) -> 9999.914687
C6: Baseline - Part B fee schedule increase | D6: =SUM(Data!E11:E12,Data!E123:E124,Data!E152) -> 1005 | E6: =SUM(Data!F11:F12,Data!F123:F124,Data!F152) -> 1010.025 | F6: =SUM(Data!G11:G12,Data!G123:G124,Data!G152) -> 1010.025 | G6: =SUM(Data!H11:H12,Data!H123:H124,Data!H152) -> 1010.025 | H6: =SUM(Data!I11:I12,Data!I123:I124,Data!I152) -> 1010.025 | I6: =SUM(Data!J11:J12,Data!J123:J124,Data!J152) -> 1010.025 | J6: =SUM(Data!K11:K12,Data!K123:K124,Data!K152) -> 1010.025 | K6: =SUM(Data!L11:L12,Data!L123:L124,Data!L152) -> 1010.025 | L6: =SUM(Data!M11:M12,Data!M123:M124,Data!M152) -> 1012.550062 | M6: 9087.725062
C7: Maximum MIPS adjustment | D7: =D6+SUM(Data!E14) -> 1005 | E7: =E6+SUM(Data!F14) -> 1012.04505 | F7: =F6+SUM(Data!G14) -> 1016.08515 | G7: =G6+SUM(Data!H14) -> 1025.175375 | H7: =H6+SUM(Data!I14) -> 1100.92725 | I7: =I6+SUM(Data!J14) -> 1100.92725 | J7: =J6+SUM(Data!K14) -> 1100.92725 | K7: =K6+SUM(Data!L14) -> 1100.92725 | L7: =L6+SUM(Data!M14) -> 1103.679568 | M7: 9565.694143
C8: Minimum MIPS adjustment | D8: =D6+SUM(Data!E13) -> 1005 | E8: =E6+SUM(Data!F13) -> 969.624 | F8: =F6+SUM(Data!G13) -> 959.52375 | G8: =G6+SUM(Data!H13) -> 939.32325 | H8: =H6+SUM(Data!I13) -> 919.12275 | I8: =I6+SUM(Data!J13) -> 919.12275 | J8: =J6+SUM(Data!K13) -> 919.12275 | K8: =K6+SUM(Data!L13) -> 919.12275 | L8: =L6+SUM(Data!M13) -> 921.4205569 | M8: 8471.382557
C9: AAPM 5% Bonus | D9: =D6+Data!E17 -> 1005 | E9: =E6+Data!F17 -> 1060.275 | F9: =F6+Data!G17 -> 1060.52625 | G9: =G6+Data!H17 -> 1060.52625 | H9: =H6+Data!I17 -> 1060.52625 | I9: =I6+Data!J17 -> 1060.52625 | J9: =J6+Data!K17 -> 1060.52625 | K9: =K6+Data!L17 -> 1010.025 | L9: =L6+Data!M17 -> 1012.550062 | M9: 9390.481313
C10: Actual MIPS | D10: =D6+Data!E25 -> 1005 | E10: =E6+Data!F25 -> 1010.753884 | F10: =F6+Data!G25 -> 1011.664805 | G10: =G6+Data!H25 -> 1016.301584 | H10: =H6+Data!I25 -> 1001.692294 | I10: =I6+Data!J25 -> 1001.692294 | J10: =J6+Data!K25 -> 1001.692294 | K10: =K6+Data!L25 -> 1001.692294 | L10: =L6+Data!M25 -> 1004.196524 | M10: 9054.685973
C11: Actual AAPM | D11: =D6+Data!E26 -> 1005 | E11: =E6+Data!F26 -> 1010.025 | F11: =F6+Data!G26 -> 1010.025 | G11: =G6+Data!H26 -> 1010.025 | H11: =H6+Data!I26 -> 1010.025 | I11: =I6+Data!J26 -> 1010.025 | J11: =J6+Data!K26 -> 1010.025 | K11: =K6+Data!L26 -> 1010.025 | L11: =L6+Data!M26 -> 1012.550062 | M11: 9087.725062
C13: =CDO_NAME &" Change in Margin in ( '000)" -> 0 Change in Margin in ( '000)
C14: Scenario: Difference from Baseline Cost (Overhead) | D14: 2018 | E14: 2019 | F14: 2020 | G14: 2021 | H14: 2022 | I14: 2023 | J14: 2024 | K14: 2025 | L14: 2026 | M14: Total
C15: Baseline with Part B fee schedule | D15: =-(D$5-D6) -> -16 | E15: -32.416 | F15: -54.307261 | G15: -76.65823848 | H15: -99.47858649 | I15: =-(I$5-I6) -> -122.7781618 | J15: -146.5670282 | K15: -170.8554608 | L15: -193.128888 | M15: -912.1896247
A16: MAX MIPS | C16: Max MIPS adjustment | D16: =-(D$5-D7) -> -16 | E16: -30.39595 | F16: -48.247111 | G16: -61.50786348 | H16: -8.576336489 | I16: -31.87591181 | J16: -55.6647782 | K16: -79.9532108 | L16: -101.9993823 | M16: =-(M$5-M7) -> -434.2205441
A17: MIN MIPS | C17: Min MIPS adjustment | D17: -16 | E17: -72.817 | F17: -104.808511 | G17: -147.3599885 | H17: -190.3808365 | I17: -213.6804118 | J17: -237.4692782 | K17: -261.7577108 | L17: -284.2583936 | M17: =-(M$5-M8) -> -1528.53213
A18: AAPM Fixed | C18: AAPM 5% Bonus | D18: =-(D$5-D9) -> -16 | E18: 17.834 | F18: -3.806011 | G18: -26.15698848 | H18: -48.97733649 | I18: -72.27691181 | J18: -96.0657782 | K18: -170.8554608 | L18: -193.128888 | M18: -609.4333747
A19: MIPS | C19: Actual MIPS | D19: =-(D$5-D10) -> -16 | E19: -31.68711598 | F19: -52.66745571 | G19: -70.38165455 | H19: -107.8112927 | I19: -131.1108681 | J19: -154.8997345 | K19: -179.188167 | L19: -201.482426 | M19: -945.2287145
A20: AAPM | C20: Actual AAPM | D20: =-(D$5-D11) -> -16 | E20: -32.416 | F20: -54.307261 | G20: -76.65823848 | H20: -99.47858649 | I20: -122.7781618 | J20: -146.5670282 | K20: -170.8554608 | L20: -193.128888 | M20: -912.1896247
C22: =CDO_NAME &" Revenue at Risk in ( '000)" -> 0 Revenue at Risk in ( '000)
C23: Scenario: Difference from Baseline with Part B Fee schedule | D23: 2018 | E23: 2019 | F23: 2020 | G23: 2021 | H23: 2022 | I23: 2023 | J23: 2024 | K23: 2025 | L23: 2026 | M23: Total
A24: MAX MIPS | C24: Max MIPS adjustment | D24: =-(D$6-D7) -> 0 | E24: 2.02005 | F24: 6.06015 | G24: 15.150375 | H24: 90.90225 | I24: 90.90225 | J24: 90.90225 | K24: 90.90225 | L24: 91.12950563 | M24: 477.9690806
A25: MIN MIPS | C25: Min MIPS adjustment | D25: =-(D$6-D8) -> 0 | E25: -40.401 | F25: -50.50125 | G25: -70.70175 | H25: -90.90225 | I25: -90.90225 | J25: -90.90225 | K25: -90.90225 | L25: -91.12950562 | M25: -616.3425056
A26: AAPM Fixed | C26: AAPM 5% Bonus | D26: =-(D$6-D9) -> 0 | E26: 50.25 | F26: 50.50125 | G26: 50.50125 | H26: 50.50125 | I26: 50.50125 | J26: 50.50125 | K26: 0 | L26: 0 | M26: 302.75625
A27: MIPS | C27: Actual MIPS | D27: =-(D$6-D10) -> 0 | E27: 0.7288840206 | F27: 1.639805294 | G27: 6.276583929 | H27: -8.33270625 | I27: -8.33270625 | J27: -8.33270625 | K27: -8.33270625 | L27: -8.353538016 | M27: -33.03908977
A28: AAPM | C28: Actual AAPM | D28: =-(D$6-D11) -> 0 | E28: 0 | F28: 0 | G28: 0 | H28: 0 | I28: 0 | J28: 0 | K28: 0 | L28: 0 | M28: 0
C31: =CDO_NAME &" Revenue in ( '000) - Shifting to QP APM Assumed" -> 0 Revenue in ( '000) - Shifting to QP APM Assumed
C32: Scenarios | D32: 2018 | E32: 2019 | F32: 2020 | G32: 2021 | H32: 2022 | I32: 2023 | J32: 2024 | K32: 2025 | L32: 2026 | M32: Total
C33: Baseline Cost (Overhead) | D33: =D5 -> 1021 | E33: 1042.441 | F33: 1064.332261 | G33: 1086.683238 | H33: 1109.503586 | I33: 1132.803162 | J33: 1156.592028 | K33: 1180.880461 | L33: 1205.67895 | M33: =SUM(D33:L33) -> 9999.914687
C34: Baseline - Part B fee schedule increase | D34: =SUM(Data!E18:E19,Data!E152,Data!E123:E124) -> 1005 | E34: =SUM(Data!F18:F19,Data!F123:F124,Data!F152) -> 1010.025 | F34: =SUM(Data!G18:G19,Data!G152,Data!G123:G124) -> 1010.025 | G34: =SUM(Data!H18:H19,Data!H152,Data!H123:H124) -> 1010.025 | H34: =SUM(Data!I18:I19,Data!I152,Data!I123:I124) -> 1010.025 | I34: =SUM(Data!J18:J19,Data!J152,Data!J123:J124) -> 1010.025 | J34: =SUM(Data!K18:K19,Data!K152,Data!K123:K124) -> 1010.025 | K34: =SUM(Data!L18:L19,Data!L152,Data!L123:L124) -> 1010.025 | L34: =SUM(Data!M18:M19,Data!M152,Data!M123:M124) -> 1012.550062 | M34: =SUM(D34:L34) -> 9087.725062
C35: Maximum MIPS adjustment | D35: =D34+SUM(Data!E21) -> 1005 | E35: =E34+SUM(Data!F21) -> 1012.04505 | F35: =F34+SUM(Data!G21) -> 1016.08515 | G35: =G34+SUM(Data!H21) -> 1025.175375 | H35: =H34+SUM(Data!I21) -> 1100.92725 | I35: =I34+SUM(Data!J21) -> 1100.92725 | J35: =J34+SUM(Data!K21) -> 1100.92725 | K35: =K34+SUM(Data!L21) -> 1100.92725 | L35: =L34+SUM(Data!M21) -> 1103.679568 | M35: =SUM(D35:L35) -> 9565.694143
C36: Minimum MIPS adjustment | D36: =D34+SUM(Data!E20) -> 1005 | E36: =E34+SUM(Data!F20) -> 969.624 | F36: =F34+SUM(Data!G20) -> 959.52375 | G36: =G34+SUM(Data!H20) -> 939.32325 | H36: =H34+SUM(Data!I20) -> 919.12275 | I36: =I34+SUM(Data!J20) -> 919.12275 | J36: =J34+SUM(Data!K20) -> 919.12275 | K36: =K34+SUM(Data!L20) -> 919.12275 | L36: =L34+SUM(Data!M20) -> 921.4205569 | M36: =SUM(D36:L36) -> 8471.382557
C37: AAPM 5% Bonus | D37: =D34+Data!E24 -> 1005 | E37: =E34+Data!F24 -> 1060.275 | F37: =F34+Data!G24 -> 1060.52625 | G37: =G34+Data!H24 -> 1060.52625 | H37: =H34+Data!I24 -> 1060.52625 | I37: =I34+Data!J24 -> 1060.52625 | J37: =J34+Data!K24 -> 1060.52625 | K37: =K34+Data!L24 -> 1010.025 | L37: =L34+Data!M24 -> 1012.550062 | M37: =M34+Data!N24 -> 9087.725062
C38: Actual MIPS | D38: =D34+Data!E27 -> 1005 | E38: =E34+Data!F27 -> 1010.753884 | F38: =F34+Data!G27 -> 1011.664805 | G38: =G34+Data!H27 -> 1010.025 | H38: =H34+Data!I27 -> 1010.025 | I38: =I34+Data!J27 -> 1010.025 | J38: =J34+Data!K27 -> 1010.025 | K38: =K34+Data!L27 -> 1010.025 | L38: =L34+Data!M27 -> 1012.550062 | M38: =M33+Data!N27 -> 9999.914687
C39: Actual AAPM | D39: =D34+Data!E28 -> 1005 | E39: =E34+Data!F28 -> 1010.025 | F39: =F34+Data!G28 -> 1010.025 | G39: =G34+Data!H28 -> 1060.52625 | H39: =H34+Data!I28 -> 1060.52625 | I39: =I34+Data!J28 -> 1060.52625 | J39: =J34+Data!K28 -> 1060.52625 | K39: =K34+Data!L28 -> 1010.025 | L39: =L34+Data!M28 -> 1012.550062 | M39: =M34+Data!N28 -> 9087.725062
C41: =CDO_NAME &" Change in Margin in ( '000) - Shifting to QP APM Assumed" -> 0 Change in Margin in ( '000) - Shifting to QP APM Assumed
C42: Scenario: Difference from Baseline Cost (Overhead) | D42: 2018 | E42: 2019 | F42: 2020 | G42: 2021 | H42: 2022 | I42: 2023 | J42: 2024 | K42: 2025 | L42: 2026 | M42: Total
C43: Baseline with Part B fee schedule | D43: =-(D$33-D34) -> -16 | E43: -32.416 | F43: -54.307261 | G43: -76.65823848 | H43: -99.47858649 | I43: -122.7781618 | J43: -146.5670282 | K43: -170.8554608 | L43: -193.128888 | M43: -912.1896247
A44: MAX MIPS | C44: Max MIPS adjustment | D44: =-(D$33-D35) -> -16 | E44: -30.39595 | F44: -48.247111 | G44: -61.50786348 | H44: -8.576336489 | I44: -31.87591181 | J44: -55.6647782 | K44: -79.9532108 | L44: -101.9993823 | M44: -434.2205441
A45: MIN MIPS | C45: Min MIPS adjustment | D45: =-(D$33-D36) -> -16 | E45: -72.817 | F45: -104.808511 | G45: -147.3599885 | H45: -190.3808365 | I45: -213.6804118 | J45: -237.4692782 | K45: -261.7577108 | L45: -284.2583936 | M45: -1528.53213
A46: AAPM Fixed | C46: AAPM 5% Bonus | D46: =-(D$33-D37) -> -16 | E46: 17.834 | F46: -3.806011 | G46: -26.15698848 | H46: -48.97733649 | I46: -72.27691181 | J46: -96.0657782 | K46: -170.8554608 | L46: -193.128888 | M46: -912.1896247
A47: MIPS | C47: Actual MIPS | D47: =-(D$33-D38) -> -16 | E47: -31.68711598 | F47: -52.66745571 | G47: -76.65823848 | H47: -99.47858649 | I47: -122.7781618 | J47: -146.5670282 | K47: -170.8554608 | L47: -193.128888 | M47: 0
A48: AAPM | C48: Actual AAPM | D48: =-(D$33-D39) -> -16 | E48: -32.416 | F48: -54.307261 | G48: -26.15698848 | H48: -48.97733649 | I48: -72.27691181 | J48: -96.0657782 | K48: -170.8554608 | L48: -193.128888 | M48: -912.1896247
C50: =CDO_NAME &" Revenue at Risk in ( '000) - Shifting to QP APM Assumed" -> 0 Revenue at Risk in ( '000) - Shifting to QP APM Assumed
C51: Scenario: Difference from Baseline with Part B Fee schedule | D51: 2018 | E51: 2019 | F51: 2020 | G51: 2021 | H51: 2022 | I51: 2023 | J51: 2024 | K51: 2025 | L51: 2026 | M51: Total
A52: MAX MIPS | C52: Max MIPS adjustment | D52: =-(D$34-D35) -> 0 | E52: =-(E$34-E35) -> 2.02005 | F52: 6.06015 | G52: 15.150375 | H52: 90.90225 | I52: 90.90225 | J52: 90.90225 | K52: 90.90225 | L52: 91.12950563 | M52: 477.9690806
A53: MIN MIPS | C53: Min MIPS adjustment | D53: =-(D$34-D36) -> 0 | E53: -40.401 | F53: -50.50125 | G53: -70.70175 | H53: -90.90225 | I53: -90.90225 | J53: -90.90225 | K53: -90.90225 | L53: -91.12950562 | M53: -616.3425056
A54: AAPM Fixed | C54: AAPM 5% Bonus | D54: =-(D$34-D37) -> 0 | E54: 50.25 | F54: 50.50125 | G54: 50.50125 | H54: 50.50125 | I54: 50.50125 | J54: 50.50125 | K54: 0 | L54: 0 | M54: 0
A55: MIPS | C55: Actual MIPS | D55: =-(D$34-D38) -> 0 | E55: 0.7288840206 | F55: 1.639805294 | G55: 0 | H55: 0 | I55: 0 | J55: 0 | K55: 0 | L55: 0 | M55: 912.1896247
A56: AAPM | C56: Actual AAPM | D56: =-(D$34-D39) -> 0 | E56: 0 | F56: 0 | G56: 50.50125 | H56: 50.50125 | I56: 50.50125 | J56: 50.50125 | K56: 0 | L56: 0 | M56: 0

Sheet Charts_Rev & Margin
B1: MACRA/QPP - Provider Revenue Model - Revenue and Margin Graphs
BA2: With No Shifting | BS2: Graphs should show 6 individual years
BT3: Medicare FFS Beneficiaries only - line graphs | BV3: baseline mips, max mips, min mips, AAPM, Expected MACRA Rev
BT4: Total (Medicare pluls other) - - line graphs | BV4: Non Medicare
BT5: Margin erosion graph - column graph
BA7: Clinician Entity Revenue -FFS | BB7: 2018 | BC7: 2019 | BD7: 2020 | BE7: 2021 | BF7: 2022 | BG7: 2023 | BH7: 2024 | BI7: 2025 | BJ7: 2026 | BL7: Clinician Entity Revenue -FFS | BM7: 2018 | BN7: 2019 | BO7: 2020 | BP7: 2021 | BQ7: 2022 | BR7: 2023 | BS7: 2024 | BT7: 2025 | BU7: 2026
BA8: FFS Revenue - Baseline | BB8: =SUM(Data!E11:E12)*1000 -> 1005000 | BC8: =SUM(Data!F11:F12)*1000 -> 1010025 | BD8: =SUM(Data!G11:G12)*1000 -> 1010025 | BE8: =SUM(Data!H11:H12)*1000 -> 1010025 | BF8: =SUM(Data!I11:I12)*1000 -> 1010025 | BG8: =SUM(Data!J11:J12)*1000 -> 1010025 | BH8: =SUM(Data!K11:K12)*1000 -> 1010025 | BI8: =SUM(Data!L11:L12)*1000 -> 1010025 | BJ8: =SUM(Data!M11:M12)*1000 -> 1012550.062 | BL8: FFS Revenue - Baseline | BM8: =SUM(Data!E18:E19)*1000 -> 1005000 | BN8: =SUM(Data!F18:F19)*1000 -> 1010025 | BO8: =SUM(Data!G18:G19)*1000 -> 1010025 | BP8: =SUM(Data!H18:H19)*1000 -> 1010025 | BQ8: =SUM(Data!I18:I19)*1000 -> 1010025 | BR8: =SUM(Data!J18:J19)*1000 -> 1010025 | BS8: =SUM(Data!K18:K19)*1000 -> 1010025 | BT8: =SUM(Data!L18:L19)*1000 -> 1010025 | BU8: =SUM(Data!M18:M19)*1000 -> 1012550.062
AW9: chart 3 & chart 4 | BA9: FFS Revenue - Maximum MIPS | BB9: =BB8+(Data!E14*1000) -> 1005000 | BC9: =BC8+(Data!F14*1000) -> 1012045.05 | BD9: =BD8+(Data!G14*1000) -> 1016085.15 | BE9: =BE8+(Data!H14*1000) -> 1025175.375 | BF9: =BF8+(Data!I14*1000) -> 1100927.25 | BG9: =BG8+(Data!J14*1000) -> 1100927.25 | BH9: =BH8+(Data!K14*1000) -> 1100927.25 | BI9: =BI8+(Data!L14*1000) -> 1100927.25 | BJ9: =BJ8+(Data!M14*1000) -> 1103679.568 | BL9: FFS Revenue - Maximum MIPS | BM9: =BM8+(Data!E21*1000) -> 1005000 | BN9: =BN8+(Data!F21*1000) -> 1012045.05 | BO9: =BO8+(Data!G21*1000) -> 1016085.15 | BP9: =BP8+(Data!H21*1000) -> 1025175.375 | BQ9: =BQ8+(Data!I21*1000) -> 1100927.25 | BR9: =BR8+(Data!J21*1000) -> 1100927.25 | BS9: =BS8+(Data!K21*1000) -> 1100927.25 | BT9: =BT8+(Data!L21*1000) -> 1100927.25 | BU9: =BU8+(Data!M21*1000) -> 1103679.568
AW10: min: | AX10: =ROUNDDOWN(MIN(BB8:BU12),-6) -> 0 | BA10: FFS Revenue - Minimum MIPS | BB10: =BB8+(Data!E13*1000) -> 1005000 | BC10: =BC8+(Data!F13*1000) -> 969624 | BD10: =BD8+(Data!G13*1000) -> 959523.75 | BE10: =BE8+(Data!H13*1000) -> 939323.25 | BF10: =BF8+(Data!I13*1000) -> 919122.75 | BG10: =BG8+(Data!J13*1000) -> 919122.75 | BH10: =BH8+(Data!K13*1000) -> 919122.75 | BI10: =BI8+(Data!L13*1000) -> 919122.75 | BJ10: =BJ8+(Data!M13*1000) -> 921420.5569 | BL10: FFS Revenue - Minmum MIPS | BM10: =BM8+(Data!E20*1000) -> 1005000 | BN10: =BN8+(Data!F13*1000) -> 969624 | BO10: =BO8+(Data!G13*1000) -> 959523.75 | BP10: =BP8+(Data!H13*1000) -> 939323.25 | BQ10: =BQ8+(Data!I13*1000) -> 919122.75 | BR10: =BR8+(Data!J13*1000) -> 919122.75 | BS10: =BS8+(Data!K13*1000) -> 919122.75 | BT10: =BT8+(Data!L13*1000) -> 919122.75 | BU10: =BU8+(Data!M13*1000) -> 921420.5569
AW11: max: | AX11: =ROUNDUP(MAX(BB8:BU12),-6) -> 2000000 | BA11: FFS Revenue - AAPM | BB11: =BB8+(Data!E17*1000) -> 1005000 | BC11: =BC8+(Data!F17*1000) -> 1060275 | BD11: =BD8+(Data!G17*1000) -> 1060526.25 | BE11: =BE8+(Data!H17*1000) -> 1060526.25 | BF11: =BF8+(Data!I17*1000) -> 1060526.25 | BG11: =BG8+(Data!J17*1000) -> 1060526.25 | BH11: =BH8+(Data!K17*1000) -> 1060526.25 | BI11: =BI8+(Data!L17*1000) -> 1010025 | BJ11: =BJ8+(Data!M17*1000) -> 1012550.062 | BL11: FFS Revenue - AAPM | BM11: =BM8+(Data!E24*1000) -> 1005000 | BN11: =BN8+(Data!F24*1000) -> 1060275 | BO11: =BO8+(Data!G24*1000) -> 1060526.25 | BP11: =BP8+(Data!H24*1000) -> 1060526.25 | BQ11: =BQ8+(Data!I24*1000) -> 1060526.25 | BR11: =BR8+(Data!J24*1000) -> 1060526.25 | BS11: =BS8+(Data!K24*1000) -> 1060526.25 | BT11: =BT8+(Data!L24*1000) -> 1010025 | BU11: =BU8+(Data!M24*1000) -> 1012550.062
BA12: FFS Revenue - Expected Performance (Baseline) | BB12: =BB8+(SUM(Data!E25:E26)*1000) -> 1005000 | BC12: =BC8+(SUM(Data!F25:F26)*1000) -> 1010753.884 | BD12: =BD8+(SUM(Data!G25:G26)*1000) -> 1011664.805 | BE12: =BE8+(SUM(Data!H25:H26)*1000) -> 1016301.584 | BF12: =BF8+(SUM(Data!I25:I26)*1000) -> 1001692.294 | BG12: =BG8+(SUM(Data!J25:J26)*1000) -> 1001692.294 | BH12: =BH8+(SUM(Data!K25:K26)*1000) -> 1001692.294 | BI12: =BI8+(SUM(Data!L25:L26)*1000) -> 1001692.294 | BJ12: =BJ8+(SUM(Data!M25:M26)*1000) -> 1004196.524 | BL12: FFS Revenue - Expected Performance (Shift) | BM12: =BM8+(SUM(Data!E27:E28)*1000) -> 1005000 | BN12: =BN8+(SUM(Data!F27:F28)*1000) -> 1010753.884 | BO12: =BO8+(SUM(Data!G27:G28)*1000) -> 1011664.805 | BP12: =BP8+(SUM(Data!H27:H28)*1000) -> 1060526.25 | BQ12: =BQ8+(SUM(Data!I27:I28)*1000) -> 1060526.25 | BR12: =BR8+(SUM(Data!J27:J28)*1000) -> 1060526.25 | BS12: =BS8+(SUM(Data!K27:K28)*1000) -> 1060526.25 | BT12: =BT8+(SUM(Data!L27:L28)*1000) -> 1010025 | BU12: =BU8+(SUM(Data!M27:M28)*1000) -> 1012550.062
BA13: Total Revenue - Baseline | BB13: =BB8+(SUM(Data!E123:E124,Data!E152:E153)*1000) -> 1005000 | BC13: =BC8+(SUM(Data!F123:F124,Data!F152:F153)*1000) -> 1010025 | BD13: =BD8+(SUM(Data!G123:G124,Data!G152:G153)*1000) -> 1010025 | BE13: =BE8+(SUM(Data!H123:H124,Data!H152:H153)*1000) -> 1010025 | BF13: =BF8+(SUM(Data!I123:I124,Data!I152:I153)*1000) -> 1010025 | BG13: =BG8+(SUM(Data!J123:J124,Data!J152:J153)*1000) -> 1010025 | BH13: =BH8+(SUM(Data!K123:K124,Data!K152:K153)*1000) -> 1010025 | BI13: =BI8+(SUM(Data!L123:L124,Data!L152:L153)*1000) -> 1010025 | BJ13: =BJ8+(SUM(Data!M123:M124,Data!M152:M153)*1000) -> 1012550.062 | BL13: Total Revenue - Baseline | BM13: =BM8+(SUM(Data!E125:E126,Data!E154:E155)*1000) -> 1005000 | BN13: =BN8+(SUM(Data!F125:F126,Data!F154:F155)*1000) -> 1010025 | BO13: =BO8+(SUM(Data!G125:G126,Data!G154:G155)*1000) -> 1010025 | BP13: =BP8+(SUM(Data!H125:H126,Data!H154:H155)*1000) -> 1010025 | BQ13: =BQ8+(SUM(Data!I125:I126,Data!I154:I155)*1000) -> 1010025 | BR13: =BR8+(SUM(Data!J125:J126,Data!J154:J155)*1000) -> 1010025 | BS13: =BS8+(SUM(Data!K125:K126,Data!K154:K155)*1000) -> 1010025 | BT13: =BT8+(SUM(Data!L125:L126,Data!L154:L155)*1000) -> 1010025 | BU13: =BU8+(SUM(Data!M125:M126,Data!M154:M155)*1000) -> 1012550.062
AW14: chart 5 & chart 6 | BA14: Total Revenue - Maximum MIPS | BB14: =(BB$13-BB$8)+BB9 -> 1005000 | BC14: 1012045.05 | BD14: 1016085.15 | BE14: 1025175.375 | BF14: 1100927.25 | BG14: =(BG$13-BG$8)+BG9 -> 1100927.25 | BH14: 1100927.25 | BI14: 1100927.25 | BJ14: 1103679.568 | BL14: Total Revenue - Maximum MIPS | BM14: =(BM$13-BM$8)+BM9 -> 1005000 | BN14: 1012045.05 | BO14: 1016085.15 | BP14: 1025175.375 | BQ14: 1100927.25 | BR14: =(BR$13-BR$8)+BR9 -> 1100927.25 | BS14: 1100927.25 | BT14: 1100927.25 | BU14: 1103679.568
AW15: min: | AX15: =ROUNDDOWN(MIN(BB13:BU17),-6) -> 0 | BA15: Total Revenue - Minimum MIPS | BB15: 1005000 | BC15: 969624 | BD15: 959523.75 | BE15: 939323.25 | BF15: 919122.75 | BG15: =(BG$13-BG$8)+BG10 -> 919122.75 | BH15: 919122.75 | BI15: 919122.75 | BJ15: 921420.5569 | BL15: Total Revenue - Minmum MIPS | BM15: 1005000 | BN15: 969624 | BO15: 959523.75 | BP15: 939323.25 | BQ15: 919122.75 | BR15: =(BR$13-BR$8)+BR10 -> 919122.75 | BS15: 919122.75 | BT15: 919122.75 | BU15: 921420.5569
AW16: max: | AX16: =ROUNDUP(MAX(BB13:BU17),-6) -> 2000000 | BA16: Total Revenue - AAPM | BB16: 1005000 | BC16: 1060275 | BD16: 1060526.25 | BE16: 1060526.25 | BF16: 1060526.25 | BG16: =(BG$13-BG$8)+BG11 -> 1060526.25 | BH16: 1060526.25 | BI16: 1010025 | BJ16: 1012550.062 | BL16: Total Revenue - AAPM | BM16: 1005000 | BN16: 1060275 | BO16: 1060526.25 | BP16: 1060526.25 | BQ16: 1060526.25 | BR16: =(BR$13-BR$8)+BR11 -> 1060526.25 | BS16: 1060526.25 | BT16: 1010025 | BU16: 1012550.062
BA17: Total Revenue - Expected Performance (Baseline) | BB17: 1005000 | BC17: 1010753.884 | BD17: 1011664.805 | BE17: 1016301.584 | BF17: 1001692.294 | BG17: =(BG$13-BG$8)+BG12 -> 1001692.294 | BH17: 1001692.294 | BI17: 1001692.294 | BJ17: 1004196.524 | BL17: Total Revenue - Expected Performance (Shift) | BM17: 1005000 | BN17: 1010753.884 | BO17: 1011664.805 | BP17: 1060526.25 | BQ17: =(BQ$13-BQ$8)+BQ12 -> 1060526.25 | BR17: =(BR$13-BR$8)+BR12 -> 1060526.25 | BS17: 1060526.25 | BT17: 1010025 | BU17: 1012550.062
BB19: 2018 | BC19: 2019 | BD19: 2020 | BE19: 2021 | BF19: 2022 | BG19: 2023 | BH19: 2024 | BI19: 2025 | BJ19: 2026 | BM19: 2018 | BN19: 2019 | BO19: 2020 | BP19: 2021 | BQ19: 2022 | BR19: 2023 | BS19: 2024 | BT19: 2025 | BU19: 2026
BA20: FFS Baseline Cost | BB20: =SUM(Data!E7:E8)*1000 -> 1021000 | BC20: =SUM(Data!F7:F8)*1000 -> 1042441 | BD20: =SUM(Data!G7:G8)*1000 -> 1064332.261 | BE20: =SUM(Data!H7:H8)*1000 -> 1086683.238 | BF20: =SUM(Data!I7:I8)*1000 -> 1109503.586 | BG20: =SUM(Data!J7:J8)*1000 -> 1132803.162 | BH20: =SUM(Data!K7:K8)*1000 -> 1156592.028 | BI20: =SUM(Data!L7:L8)*1000 -> 1180880.461 | BJ20: =SUM(Data!M7:M8)*1000 -> 1205678.95 | BL20: FFS Baseline Cost | BM20: =BB20 -> 1021000 | BN20: =BC20 -> 1042441 | BO20: =BD20 -> 1064332.261 | BP20: =BE20 -> 1086683.238 | BQ20: =BF20 -> 1109503.586 | BR20: =BG20 -> 1132803.162 | BS20: =BH20 -> 1156592.028 | BT20: =BI20 -> 1180880.461 | BU20: =BJ20 -> 1205678.95
BA21: Total Baseline Cost | BB21: ='Revenue at Risk Summary'!D5*1000 -> 1021000 | BC21: ='Revenue at Risk Summary'!E5*1000 -> 1042441 | BD21: ='Revenue at Risk Summary'!F5*1000 -> 1064332.261 | BE21: ='Revenue at Risk Summary'!G5*1000 -> 1086683.238 | BF21: ='Revenue at Risk Summary'!H5*1000 -> 1109503.586 | BG21: ='Revenue at Risk Summary'!I5*1000 -> 1132803.162 | BH21: ='Revenue at Risk Summary'!J5*1000 -> 1156592.028 | BI21: ='Revenue at Risk Summary'!K5*1000 -> 1180880.461 | BJ21: ='Revenue at Risk Summary'!L5*1000 -> 1205678.95 | BL21: Total Baseline Cost | BM21: 1021000 | BN21: 1042441 | BO21: 1064332.261 | BP21: 1086683.238 | BQ21: 1109503.586 | BR21: 1132803.162 | BS21: 1156592.028 | BT21: 1180880.461 | BU21: 1205678.95
BB26: 2018 | BC26: 2019 | BD26: 2020 | BE26: 2021 | BF26: 2022 | BG26: 2023 | BH26: 2024 | BI26: 2025 | BJ26: 2026 | BM26: 2018 | BN26: 2019 | BO26: 2020 | BP26: 2021 | BQ26: 2022 | BR26: 2023 | BS26: 2024 | BT26: 2025 | BU26: 2026
BA27: FFS Margin - Baseline | BB27: =(BB8-BB$20)/BB$20 -> -0.01567091087 | BC27: -0.0310962443 | BD27: -0.05102472507 | BE27: -0.07054331545 | BF27: -0.08966044608 | BG27: -0.1083843742 | BH27: -0.1267231873 | BI27: -0.1446848064 | BJ27: -0.160182682 | BL27: FFS Margin - Baseline | BM27: =(BM8-BM$20)/BM$20 -> -0.01567091087 | BN27: -0.0310962443 | BO27: -0.05102472507 | BP27: -0.07054331545 | BQ27: -0.08966044608 | BR27: =(BR8-BR$20)/BR$20 -> -0.1083843742 | BS27: -0.1267231873 | BT27: -0.1446848064 | BU27: -0.160182682
BA28: FFS Margin - Maximum MIPS | BB28: =(BB9-BB$20)/BB$20 -> -0.01567091087 | BC28: -0.02915843678 | BD28: -0.04533087342 | BE28: -0.05660146518 | BF28: -0.007729886224 | BG28: =(BG9-BG$20)/BG$20 -> -0.0281389679 | BH28: -0.04812827414 | BI28: -0.06770643892 | BJ28: -0.08459912343 | BL28: FFS Margin - Maximum MIPS | BM28: =(BM9-BM$20)/BM$20 -> -0.01567091087 | BN28: -0.02915843678 | BO28: -0.04533087342 | BP28: -0.05660146518 | BQ28: -0.007729886224 | BR28: =(BR9-BR$20)/BR$20 -> -0.0281389679 | BS28: -0.04812827414 | BT28: -0.06770643892 | BU28: -0.08459912343
BA29: FFS Margin - Minimum MIPS | BB29: -0.01567091087 | BC29: -0.06985239452 | BD29: -0.09847348882 | BE29: -0.1356052834 | BF29: -0.1715910059 | BG29: -0.1886297805 | BH29: -0.2053181004 | BI29: -0.2216631738 | BJ29: -0.2357662407 | BL29: FFS Margin - Minmum MIPS | BM29: -0.01567091087 | BN29: -0.06985239452 | BO29: -0.09847348882 | BP29: -0.1356052834 | BQ29: -0.1715910059 | BR29: =(BR10-BR$20)/BR$20 -> -0.1886297805 | BS29: -0.2053181004 | BT29: -0.2216631738 | BU29: -0.2357662407
BA30: FFS Margin - AAPM | BB30: -0.01567091087 | BC30: 0.01710792265 | BD30: -0.003575961323 | BE30: -0.02407048122 | BF30: -0.04414346838 | BG30: -0.06380359293 | BH30: -0.08305934665 | BI30: -0.1446848064 | BJ30: -0.160182682 | BL30: FFS Margin - AAPM | BM30: -0.01567091087 | BN30: 0.01710792265 | BO30: -0.003575961323 | BP30: -0.02407048122 | BQ30: -0.04414346838 | BR30: =(BR11-BR$20)/BR$20 -> -0.06380359293 | BS30: -0.08305934665 | BT30: -0.1446848064 | BU30: -0.160182682
BA31: FFS Margin - Expected Performance (Baseline) | BB31: -0.01567091087 | BC31: -0.0303970354 | BD31: -0.0494840358 | BE31: -0.06476740605 | BF31: -0.0971707474 | BG31: -0.1157402031 | BH31: -0.133927721 | BI31: -0.1517411567 | BJ31: -0.1671111749 | BL31: FFS Margin - Expected Performance (Shift) | BM31: -0.01567091087 | BN31: -0.0303970354 | BO31: -0.0494840358 | BP31: -0.02407048122 | BQ31: -0.04414346838 | BR31: =(BR12-BR$20)/BR$20 -> -0.06380359293 | BS31: -0.08305934665 | BT31: -0.1446848064 | BU31: -0.160182682
BB33: 2018 | BC33: 2019 | BD33: 2020 | BE33: 2021 | BF33: 2022 | BG33: 2023 | BH33: 2024 | BI33: 2025 | BJ33: 2026 | BM33: 2018 | BN33: 2019 | BO33: 2020 | BP33: 2021 | BQ33: 2022 | BR33: 2023 | BS33: 2024 | BT33: 2025 | BU33: 2026
BA34: Total Margin - Baseline | BB34: =(BB13-BB$21)/BB$21 -> -0.01567091087 | BC34: -0.0310962443 | BD34: -0.05102472507 | BE34: -0.07054331545 | BF34: -0.08966044608 | BG34: -0.1083843742 | BH34: -0.1267231873 | BI34: -0.1446848064 | BJ34: -0.160182682 | BL34: Total Margin - Baseline MIPS | BM34: =(BM13-BM$21)/BM$21 -> -0.01567091087 | BN34: -0.0310962443 | BO34: -0.05102472507 | BP34: -0.07054331545 | BQ34: -0.08966044608 | BR34: =(BR13-BR$21)/BR$21 -> -0.1083843742 | BS34: -0.1267231873 | BT34: -0.1446848064 | BU34: -0.160182682
BA35: Total Margin - Maximum MIPS | BB35: =(BB14-BB$21)/BB$21 -> -0.01567091087 | BC35: -0.02915843678 | BD35: -0.04533087342 | BE35: -0.05660146518 | BF35: -0.007729886224 | BG35: =(BG14-BG$21)/BG$21 -> -0.0281389679 | BH35: -0.04812827414 | BI35: -0.06770643892 | BJ35: -0.08459912343 | BL35: Total Margin - Maximum MIPS | BM35: =(BM14-BM$21)/BM$21 -> -0.01567091087 | BN35: -0.02915843678 | BO35: -0.04533087342 | BP35: -0.05660146518 | BQ35: -0.007729886224 | BR35: =(BR14-BR$21)/BR$21 -> -0.0281389679 | BS35: -0.04812827414 | BT35: -0.06770643892 | BU35: -0.08459912343
BA36: Total Margin - Minimum MIPS | BB36: -0.01567091087 | BC36: -0.06985239452 | BD36: -0.09847348882 | BE36: -0.1356052834 | BF36: -0.1715910059 | BG36: -0.1886297805 | BH36: -0.2053181004 | BI36: -0.2216631738 | BJ36: -0.2357662407 | BL36: Total Margin - Minmum MIPS | BM36: -0.01567091087 | BN36: -0.06985239452 | BO36: -0.09847348882 | BP36: -0.1356052834 | BQ36: -0.1715910059 | BR36: =(BR15-BR$21)/BR$21 -> -0.1886297805 | BS36: -0.2053181004 | BT36: -0.2216631738 | BU36: -0.2357662407
BA37: Total Margin - AAPM | BB37: -0.01567091087 | BC37: 0.01710792265 | BD37: -0.003575961323 | BE37: -0.02407048122 | BF37: -0.04414346838 | BG37: -0.06380359293 | BH37: -0.08305934665 | BI37: -0.1446848064 | BJ37: -0.160182682 | BL37: Total Margin - AAPM | BM37: -0.01567091087 | BN37: 0.01710792265 | BO37: -0.003575961323 | BP37: -0.02407048122 | BQ37: -0.04414346838 | BR37: =(BR16-BR$21)/BR$21 -> -0.06380359293 | BS37: -0.08305934665 | BT37: -0.1446848064 | BU37: -0.160182682
BA38: Total Margin - Expected Performance (Baseline) | BB38: -0.01567091087 | BC38: -0.0303970354 | BD38: -0.0494840358 | BE38: -0.06476740605 | BF38: -0.0971707474 | BG38: -0.1157402031 | BH38: -0.133927721 | BI38: -0.1517411567 | BJ38: -0.1671111749 | BL38: Total Margin - Expected Performance (Shift) | BM38: -0.01567091087 | BN38: -0.0303970354 | BO38: -0.0494840358 | BP38: -0.02407048122 | BQ38: -0.04414346838 | BR38: =(BR17-BR$21)/BR$21 -> -0.06380359293 | BS38: -0.08305934665 | BT38: -0.1446848064 | BU38: -0.160182682

Sheet Charts_Performance
B1: MACRA/QPP - Provider Revenue Model - Revenue at Risk
F17: =ROUND(MAX('Revenue at Risk Summary'!D55:L56,'Revenue at Risk Summary'!D27:L28),-2) -> 100

Sheet Lookups for charts_WS2 (hidden)
C1: With Shifting | K1: With No Shifting
C2: 2018 | D2: 2019 | E2: 2020 | F2: 3 Yrs: 2018-2020 | G2: 3 Yrs: 2021-2023 | H2: 6 Yrs: 2018-2023 | K2: 2018 | L2: 2019 | M2: 2020 | N2: 3 Yrs: 2018-2020 | O2: 3 Yrs: 2021-2023 | P2: 6 Yrs: 2018-2023
C3: =Data!E6+Data!E122+Data!E151 -> 1000 | D3: =Data!F6+Data!F122+Data!F151 -> 1000 | E3: =Data!G6+Data!G122+Data!G151 -> 1000 | F3: =SUM(C3:E3) -> 3000 | G3: =SUM(Data!H6:J6,Data!H122:J122,Data!H151:J151) -> 3000 | H3: =F3+G3 -> 6000 | K3: =Data!E5+Data!E121+Data!E150 -> 1000 | L3: =Data!F5+Data!F121+Data!F150 -> 1000 | M3: =Data!G5+Data!G121+Data!G150 -> 1000 | N3: =SUM(K3:M3) -> 3000 | O3: =SUM(Data!H5:J5,Data!H121:J121,Data!H150:J150) -> 3000 | P3: =N3+O3 -> 6000
B6: CDO revenue | C6: 2018 | D6: 2019 | E6: 2020 | F6: 3 Yrs: 2018-2020 | G6: 3 Yrs: 2021-2023 | H6: 6 Yrs: 2018-2023 | J6: CDO revenue | K6: 2018 | L6: 2019 | M6: 2020 | N6: 3 Yrs: 2018-2020 | O6: 3 Yrs: 2021-2023 | P6: 6 Yrs: 2018-2023
B7: Revenue -CPI | C7: ='Revenue at Risk Summary'!D33*1000 -> 1021000 | D7: ='Revenue at Risk Summary'!E33*1000 -> 1042441 | E7: ='Revenue at Risk Summary'!F33*1000 -> 1064332.261 | F7: =SUM(C7:E7) -> 3127773.261 | G7: =SUM('Revenue at Risk Summary'!G33:I33)*1000 -> 3328989.987 | H7: =SUM(F7,G7) -> 6456763.248 | J7: Revenue -CPI | K7: ='Revenue at Risk Summary'!D5*1000 -> 1021000 | L7: ='Revenue at Risk Summary'!E5*1000 -> 1042441 | M7: ='Revenue at Risk Summary'!F5*1000 -> 1064332.261 | N7: =SUM(K7:M7) -> 3127773.261 | O7: =SUM('Revenue at Risk Summary'!G5:I5)*1000 -> 3328989.987 | P7: =N7+O7 -> 6456763.248
B8: Revenue - FFS Update w/o Quality Bonus | C8: ='Revenue at Risk Summary'!D34*1000 -> 1005000 | D8: ='Revenue at Risk Summary'!E34*1000 -> 1010025 | E8: ='Revenue at Risk Summary'!F34*1000 -> 1010025 | F8: =SUM(C8:E8) -> 3025050 | G8: =SUM('Revenue at Risk Summary'!G34:I34)*1000 -> 3030075 | H8: =SUM(F8,G8) -> 6055125 | J8: Revenue - FFS Update w/o Quality Bonus | K8: ='Revenue at Risk Summary'!D6*1000 -> 1005000 | L8: ='Revenue at Risk Summary'!E6*1000 -> 1010025 | M8: ='Revenue at Risk Summary'!F6*1000 -> 1010025 | N8: =SUM(K8:M8) -> 3025050 | O8: =SUM('Revenue at Risk Summary'!G6:I6)*1000 -> 3030075 | P8: 6055125
B9: Revenue - FFS + MIPS Adj | C9: ='Revenue at Risk Summary'!D38*1000 -> 1005000 | D9: ='Revenue at Risk Summary'!E38*1000 -> 1010753.884 | E9: ='Revenue at Risk Summary'!F38*1000 -> 1011664.805 | F9: =SUM(C9:E9) -> 3027418.689 | G9: =SUM('Revenue at Risk Summary'!G38:I38)*1000 -> 3030075 | H9: =SUM(F9,G9) -> 6057493.689 | J9: Revenue - FFS + MIPS Adj | K9: ='Revenue at Risk Summary'!D10*1000 -> 1005000 | L9: ='Revenue at Risk Summary'!E10*1000 -> 1010753.884 | M9: ='Revenue at Risk Summary'!F10*1000 -> 1011664.805 | N9: =SUM(K9:M9) -> 3027418.689 | O9: =SUM('Revenue at Risk Summary'!G10:I10)*1000 -> 3019686.171 | P9: 6047104.861
B10: Revenue - MIPS + APM | C10: ='Revenue at Risk Summary'!D39*1000 -> 1005000 | D10: ='Revenue at Risk Summary'!E39*1000 -> 1010025 | E10: ='Revenue at Risk Summary'!F39*1000 -> 1010025 | F10: =SUM(C10:E10) -> 3025050 | G10: =SUM('Revenue at Risk Summary'!G39:I39)*1000 -> 3181578.75 | H10: =SUM(F10,G10) -> 6206628.75 | J10: Revenue - MIPS + APM | K10: ='Revenue at Risk Summary'!D11*1000 -> 1005000 | L10: ='Revenue at Risk Summary'!E11*1000 -> 1010025 | M10: ='Revenue at Risk Summary'!F11*1000 -> 1010025 | N10: =SUM(K10:M10) -> 3025050 | O10: =SUM('Revenue at Risk Summary'!G11:I11)*1000 -> 3030075 | P10: 6055125
B13: CDO-Revenue Per Clinician | C13: 2018 | D13: 2019 | E13: 2020 | F13: 3 Yrs: 2018-2020 | G13: 3 Yrs: 2021-2023 | H13: 6 Yrs: 2018-2023 | J13: CDO-Revenue Per Clinician | K13: 2018 | L13: 2019 | M13: 2020 | N13: 3 Yrs: 2018-2020 | O13: 3 Yrs: 2021-2023 | P13: 6 Yrs: 2018-2023
B14: Revenue -CPI | J14: Revenue -CPI
B15: Revenue - FFS Update w/o Quality Bonus | J15: Revenue - FFS Update w/o Quality Bonus
B16: Revenue - FFS + MIPS Adj | J16: Revenue - FFS + MIPS Adj
B17: Revenue - MIPS + APM | J17: Revenue - MIPS + APM
B20: CDO - Revenue Per Capita | C20: 2018 | D20: 2019 | E20: 2020 | F20: 3 Yrs: 2018-2020 | G20: 3 Yrs: 2021-2023 | H20: 6 Yrs: 2018-2023 | J20: CDO - Revenue Per Capita | K20: 2018 | L20: 2019 | M20: 2020 | N20: 3 Yrs: 2018-2020 | O20: 3 Yrs: 2021-2023 | P20: 6 Yrs: 2018-2023
B21: Revenue -CPI | C21: =C7/C$3 -> 1021 | D21: 1042.441 | E21: 1064.332261 | F21: 1042.591087 | G21: 1109.663329 | H21: 1076.127208 | J21: Revenue -CPI | K21: =K7/K$3 -> 1021 | L21: 1042.441 | M21: 1064.332261 | N21: 1042.591087 | O21: 1109.663329 | P21: 1076.127208
B22: Revenue - FFS Update w/o Quality Bonus | C22: 1005 | D22: 1010.025 | E22: 1010.025 | F22: 1008.35 | G22: 1010.025 | H22: 1009.1875 | J22: Revenue - FFS Update w/o Quality Bonus | K22: =K8/K$3 -> 1005 | L22: 1010.025 | M22: 1010.025 | N22: 1008.35 | O22: 1010.025 | P22: 1009.1875
B23: Revenue - FFS + MIPS Adj | C23: 1005 | D23: 1010.753884 | E23: 1011.664805 | F23: 1009.139563 | G23: 1010.025 | H23: 1009.582282 | J23: Revenue - FFS + MIPS Adj | K23: =K9/K$3 -> 1005 | L23: 1010.753884 | M23: 1011.664805 | N23: 1009.139563 | O23: 1006.562057 | P23: 1007.85081
B24: Revenue - MIPS + APM | C24: 1005 | D24: 1010.025 | E24: 1010.025 | F24: 1008.35 | G24: 1060.52625 | H24: 1034.438125 | J24: Revenue - MIPS + APM | K24: =K10/K$3 -> 1005 | L24: 1010.025 | M24: 1010.025 | N24: 1008.35 | O24: 1010.025 | P24: 1009.1875
B26: Revenue at Risk - Per clinician | C26: 2018 | D26: 2019 | E26: 2020 | F26: 3 Yrs: 2018-2020 | G26: 3 Yrs: 2021-2023 | H26: 6 Yrs: 2018-2023 | J26: Revenue at Risk - Per clinician | K26: 2018 | L26: 2019 | M26: 2020 | N26: 3 Yrs: 2018-2020 | O26: 3 Yrs: 2021-2023 | P26: 6 Yrs: 2018-2023
B27: Baseline MIPS less MIPS | J27: Baseline MIPS less MIPS
B28: Baseline MIPS less MIPS + AAPM | J28: Baseline MIPS less MIPS + AAPM

Sheet Lookups for charts_WS1 (hidden)
C1: With Shifting | K1: With No Shifting
C2: 2018 | D2: 2019 | E2: 2020 | F2: 3 Yrs: 2018-2020 | G2: 3 Yrs: 2021-2023 | H2: 6 Yrs: 2018-2023 | K2: 2018 | L2: 2019 | M2: 2020 | N2: 3 Yrs: 2018-2020 | O2: 3 Yrs: 2021-2023 | P2: 6 Yrs: 2018-2023
C3: =Data!E6+Data!E122+Data!E151 -> 1000 | D3: =Data!F6+Data!F122+Data!F151 -> 1000 | E3: =Data!G6+Data!G122+Data!G151 -> 1000 | F3: =SUM(C3:E3) -> 3000 | G3: =SUM(Data!H6:J6,Data!H122:J122,Data!H151:J151) -> 3000 | H3: =F3+G3 -> 6000 | K3: =Data!E5+Data!E121+Data!E150 -> 1000 | L3: =Data!F5+Data!F121+Data!F150 -> 1000 | M3: =Data!G5+Data!G121+Data!G150 -> 1000 | N3: =SUM(K3:M3) -> 3000 | O3: =SUM(Data!H5:J5,Data!H121:J121,Data!H150:J150) -> 3000 | P3: =N3+O3 -> 6000
B6: CDO revenue | C6: 2018 | D6: 2019 | E6: 2020 | F6: 3 Yrs: 2018-2020 | G6: 3 Yrs: 2021-2023 | H6: 6 Yrs: 2018-2023 | J6: CDO revenue | K6: 2018 | L6: 2019 | M6: 2020 | N6: 3 Yrs: 2018-2020 | O6: 3 Yrs: 2021-2023 | P6: 6 Yrs: 2018-2023
B7: Revenue -CPI | C7: ='Revenue at Risk Summary'!D33*1000 -> 1021000 | D7: ='Revenue at Risk Summary'!E33*1000 -> 1042441 | E7: ='Revenue at Risk Summary'!F33*1000 -> 1064332.261 | F7: =SUM(C7:E7) -> 3127773.261 | G7: =SUM('Revenue at Risk Summary'!G33:I33)*1000 -> 3328989.987 | H7: =SUM(F7,G7) -> 6456763.248 | J7: Revenue -CPI | K7: ='Revenue at Risk Summary'!D5*1000 -> 1021000 | L7: ='Revenue at Risk Summary'!E5*1000 -> 1042441 | M7: ='Revenue at Risk Summary'!F5*1000 -> 1064332.261 | N7: =SUM(K7:M7) -> 3127773.261 | O7: =SUM('Revenue at Risk Summary'!G5:I5)*1000 -> 3328989.987 | P7: =SUM(N7:O7) -> 6456763.248
B8: Revenue - FFS Update w/o Quality Bonus | C8: ='Revenue at Risk Summary'!D34*1000 -> 1005000 | D8: ='Revenue at Risk Summary'!E34*1000 -> 1010025 | E8: ='Revenue at Risk Summary'!F34*1000 -> 1010025 | F8: =SUM(C8:E8) -> 3025050 | G8: =SUM('Revenue at Risk Summary'!G34:I34)*1000 -> 3030075 | H8: =SUM(F8,G8) -> 6055125 | J8: Revenue - FFS Update w/o Quality Bonus | K8: ='Revenue at Risk Summary'!D6*1000 -> 1005000 | L8: ='Revenue at Risk Summary'!E6*1000 -> 1010025 | M8: ='Revenue at Risk Summary'!F6*1000 -> 1010025 | N8: =SUM(K8:M8) -> 3025050 | O8: =SUM('Revenue at Risk Summary'!G6:I6)*1000 -> 3030075 | P8: =SUM(N8:O8) -> 6055125
B9: Maximum - MIPS + AAPM | C9: ='Revenue at Risk Summary'!D35*1000 -> 1005000 | D9: ='Revenue at Risk Summary'!E35*1000 -> 1012045.05 | E9: ='Revenue at Risk Summary'!F35*1000 -> 1016085.15 | F9: =SUM(C9:E9) -> 3033130.2 | G9: =SUM('Revenue at Risk Summary'!G35:I35)*1000 -> 3227029.875 | H9: =SUM(F9,G9) -> 6260160.075 | J9: Maximum - MIPS + AAPM | K9: ='Revenue at Risk Summary'!D7*1000 -> 1005000 | L9: ='Revenue at Risk Summary'!E7*1000 -> 1012045.05 | M9: ='Revenue at Risk Summary'!F7*1000 -> 1016085.15 | N9: =SUM(K9:M9) -> 3033130.2 | O9: =SUM('Revenue at Risk Summary'!G7:I7)*1000 -> 3227029.875 | P9: 6260160.075
B10: Minimum - MIPS + AAAPM | C10: ='Revenue at Risk Summary'!D36*1000 -> 1005000 | D10: ='Revenue at Risk Summary'!E36*1000 -> 969624 | E10: ='Revenue at Risk Summary'!F36*1000 -> 959523.75 | F10: =SUM(C10:E10) -> 2934147.75 | G10: =SUM('Revenue at Risk Summary'!G36:I36)*1000 -> 2777568.75 | H10: =SUM(F10,G10) -> 5711716.5 | J10: Minimum - MIPS + AAAPM | K10: ='Revenue at Risk Summary'!D8*1000 -> 1005000 | L10: ='Revenue at Risk Summary'!E8*1000 -> 969624 | M10: ='Revenue at Risk Summary'!F8*1000 -> 959523.75 | N10: =SUM(K10:M10) -> 2934147.75 | O10: =SUM('Revenue at Risk Summary'!G8:I8)*1000 -> 2777568.75 | P10: 5711716.5
B13: CDO-Revenue Per Clinician | C13: 2018 | D13: 2019 | E13: 2020 | F13: 3 Yrs: 2018-2020 | G13: 3 Yrs: 2021-2023 | H13: 6 Yrs: 2018-2023 | J13: CDO-Revenue Per Clinician | K13: 2018 | L13: 2019 | M13: 2020 | N13: 3 Yrs: 2018-2020 | O13: 3 Yrs: 2021-2023 | P13: 6 Yrs: 2018-2023
B14: Revenue -CPI | J14: Revenue -CPI
B15: Revenue - FFS Update w/o Quality Bonus | J15: Revenue - FFS Update w/o Quality Bonus
B16: Maximum - MIPS + AAPM | J16: Maximum - MIPS + AAPM
B17: Minimum - MIPS + AAAPM | J17: Minimum - MIPS + AAAPM
B20: CDO - Revenue Per Capita | C20: 2018 | D20: 2019 | E20: 2020 | F20: 3 Yrs: 2018-2020 | G20: 3 Yrs: 2021-2023 | H20: 6 Yrs: 2018-2023 | J20: CDO - Revenue Per Capita | K20: 2018 | L20: 2019 | M20: 2020 | N20: 3 Yrs: 2018-2020 | O20: 3 Yrs: 2021-2023 | P20: 6 Yrs: 2018-2023
B21: Revenue -CPI | C21: =C7/C$3 -> 1021 | D21: 1042.441 | E21: 1064.332261 | F21: 1042.591087 | G21: 1109.663329 | H21: 1076.127208 | J21: Revenue -CPI | K21: =K7/K$3 -> 1021 | L21: 1042.441 | M21: 1064.332261 | N21: 1042.591087 | O21: 1109.663329 | P21: 1076.127208
B22: Revenue - FFS Update w/o Quality Bonus | C22: 1005 | D22: 1010.025 | E22: 1010.025 | F22: 1008.35 | G22: 1010.025 | H22: 1009.1875 | J22: Revenue - FFS Update w/o Quality Bonus | K22: =K8/K$3 -> 1005 | L22: 1010.025 | M22: 1010.025 | N22: 1008.35 | O22: 1010.025 | P22: 1009.1875
B23: Maximum - MIPS + AAPM | C23: 1005 | D23: 1012.04505 | E23: 1016.08515 | F23: 1011.0434 | G23: 1075.676625 | H23: 1043.360012 | J23: Maximum - MIPS + AAPM | K23: 1005 | L23: 1012.04505 | M23: 1016.08515 | N23: 1011.0434 | O23: 1075.676625 | P23: 1043.360012
B24: Minimum - MIPS + AAAPM | C24: 1005 | D24: 969.624 | E24: 959.52375 | F24: 978.04925 | G24: 925.85625 | H24: 951.95275 | J24: Minimum - MIPS + AAAPM | K24: 1005 | L24: 969.624 | M24: 959.52375 | N24: 978.04925 | O24: 925.85625 | P24: 951.95275
B26: Revenue at Risk - Per clinician | J26: Revenue at Risk - Per clinician
B27: Baseline MIPS less Min MIPS + AAPM | J27: Baseline MIPS less Max MIPS
B28: Baseline MIPS less Max MIPS + AAPM | J28: Baseline MIPS less Min MIPS
J29: Baseline MIPS less Expected MACRA
